Workbook

Sheet 6-step-design

Sheet stock-flow-diagram

Sheet model
B3: (01) Adjustment time for price= | D3: =LEFT(RIGHT(B3, LEN(B3)-8),LEN(RIGHT(B3, LEN(B3)-8))-1) -> Adjustment time for price | E3: =B4 -> 1
B4: 1
B6: (02) Change in Price=(Indicated price - Price) / Adjustment time for price | D6: =LEFT(RIGHT(B6, LEN(B6)-8),LEN(RIGHT(B6, LEN(B6)-8))) -> Change in Price=(Indicated price - Price) / Adjustment time for price
B7: Units: **undefined**
B9: (03) Demand=Reference demand * (Price / Reference price)^Demand elasticity | D9: =LEFT(RIGHT(B9, LEN(B9)-8),LEN(RIGHT(B9, LEN(B9)-8))) -> Demand=Reference demand * (Price / Reference price)^Demand elasticity
B10: Units: units/Year [0,1000,1]
B12: (04) Demand elasticity= | D12: =LEFT(RIGHT(B12, LEN(B12)-8),LEN(RIGHT(B12, LEN(B12)-8))-1) -> Demand elasticity | E12: =B13 -> -0.25
B13: -0.25
B14: Units: **undefined** [-1.5,-0.01]
B16: (05) Demand Supply balance=Demand / Supply | D16: =LEFT(RIGHT(B16, LEN(B16)-8),LEN(RIGHT(B16, LEN(B16)-8))) -> Demand Supply balance=Demand / Supply
B17: Units: **undefined**
B19: (06) FINAL TIME=
B20: 100
B21: The final time for the simulation.
B23: (07) Indicated price=Price * Demand Supply balance^Sensitivity | D23: =LEFT(RIGHT(B23, LEN(B23)-8),LEN(RIGHT(B23, LEN(B23)-8))) -> Indicated price=Price * Demand Supply balance^Sensitivity
B24: Units: rupess/unit
B26: (08) Initial price= | D26: =LEFT(RIGHT(B26, LEN(B26)-8),LEN(RIGHT(B26, LEN(B26)-8))-1) -> Initial price | E26: =B27 -> 100
B27: 100
B29: (09) INITIAL TIME= | D29: =LEFT(RIGHT(B29, LEN(B29)-8),LEN(RIGHT(B29, LEN(B29)-8))-1) -> INITIAL TIME | E29: =B30 -> 0
B30: 0
B31: The initial time for the simulation.
B33: (10) Price= INTEG (Change in Price, | D33: =LEFT(RIGHT(B33, LEN(B33)-8),LEN(RIGHT(B33, LEN(B33)-8)))&B34 -> Price= INTEG (Change in Price, initial price)
B34: initial price)
B35: Units: **undefined**
B37: (11) Reference demand= | D37: =LEFT(RIGHT(B37, LEN(B37)-8),LEN(RIGHT(B37, LEN(B37)-8))-1) -> Reference demand | E37: =B38 -> 300
B38: 300
B40: (12) Reference price= | D40: =LEFT(RIGHT(B40, LEN(B40)-8),LEN(RIGHT(B40, LEN(B40)-8))-1) -> Reference price | E40: =B41 -> 100
B41: 100
B43: (13) Reference supply= | D43: =LEFT(RIGHT(B43, LEN(B43)-8),LEN(RIGHT(B43, LEN(B43)-8))-1) -> Reference supply | E43: =B44 -> 100
B44: 100
B46: (14) SAVEPER =
B47: TIME STEP
B48: Units: Year [0,?]
B49: The frequency with which output is stored.
B51: (15) Sensitivity= | D51: =LEFT(RIGHT(B51, LEN(B51)-8),LEN(RIGHT(B51, LEN(B51)-8))-1) -> Sensitivity | E51: =B52 -> 1
B52: 1
B54: (16) Supply=Reference supply * (Price / Reference price)^Supply elasticity | D54: =LEFT(RIGHT(B54, LEN(B54)-8),LEN(RIGHT(B54, LEN(B54)-8))) -> Supply=Reference supply * (Price / Reference price)^Supply elasticity
B55: Units: units/Year [0,1000,1]
B57: (17) Supply elasticity= | D57: =LEFT(RIGHT(B57, LEN(B57)-8),LEN(RIGHT(B57, LEN(B57)-8))-1) -> Supply elasticity | E57: =B58 -> 0.5
B58: 0.5
B59: Units: **undefined** [0.01,1.5]
B61: (18) TIME STEP= 1 | D61: =LEFT(RIGHT(B61, LEN(B61)-8),LEN(RIGHT(B61, LEN(B61)-8))-1) -> TIME STEP= | E61: =B62 -> 1
B62: 1
B63: The time step for the simulation.

Sheet inputs
B2: name | C2: value
B3: =model!D3 -> Adjustment time for price | C3: 2 | E3: mean_demand_elasticity | F3: sd_demand_elasticity | G3: mu_mean | H3: sigma_mean
A4: >>>>>>> | B4: =model!D12 -> Demand elasticity | C4: =_xlfn.NORM.INV( RAND(), E4, F4 ) -> -0.2408721394 | D4: <<<<<<< | E4: =_xlfn.NORM.INV( RAND(), G4, H4 ) -> -0.2569637062 | F4: 0.05 | G4: -0.25 | H4: 0.01
B5: =model!D26:E26 -> Initial price | C5: 100
B6: =model!D37:E37 -> Reference demand | C6: 300
B7: =model!D40:E40 -> Reference price | C7: 100
B8: =model!D43:E43 -> Reference supply | C8: 100
B9: =model!D51:E51 -> Sensitivity | C9: 1 | E9: mean_supply_elasticity | F9: sd_supply_elasticity | G9: mu_mean | H9: sigma_mean
A10: >>>>>>> | B10: =model!D57 -> Supply elasticity | C10: =_xlfn.NORM.INV( RAND(), E10, F10 ) -> 0.4973987069 | D10: <<<<<<< | E10: =_xlfn.NORM.INV( RAND(), G10, H10 ) -> 0.4911239152 | F10: 0.05 | G10: 0.5 | H10: 0.01
B12: t0 | C12: 0
B13: T | C13: 100
B14: step | C14: 1
B16: Initial Bid | C16: 75
B17: Bid reference | C17: 75
B18: Adjustment time for Bid | C18: 1
B19: Initial Ask | C19: 125
B20: Ask reference | C20: 125
B21: Adjustment time for Ask | C21: 1

Sheet simulation
A1: time | B1: Change in Price | C1: Price | D1: Demand | E1: Supply | F1: Demand Supply balance | G1: Indicated price | I1: Bid | J1: Change in Bid | K1: Ask | L1: Change in Ask | M1: Bid Ask balance
A2: =t0 -> 0 | B2: 0 | C2: =Initial_price -> 100 | D2: =Reference_demand -> 300 | E2: =Reference_supply -> 100 | F2: =D2 / E2 -> 3 | G2: =C2 * F2^Sensitivity -> 300 | I2: =Initial_Bid -> 75 | J2: 0 | K2: =Initial_Ask -> 125 | L2: 0 | M2: =I2 / K2 -> 0.6
A3: =A2 + step -> 1 | B3: =(G3 - C2) / Adjustment_time_for_price -> 100 | C3: =C2 + B3 -> 200 | D3: =Reference_demand * (C3 / Reference_price)^Demand_elasticity -> 253.8700775 | E3: =Reference_supply * (C3 / Reference_price)^Supply_elasticity -> 141.1665921 | F3: =D3 / E3 -> 1.798372219 | G3: =C2 * F2 ^ Sensitivity -> 300
A4: =A3 + step -> 2 | B4: =(G4 - C3) / Adjustment_time_for_price -> 79.83722192 | C4: =C3 + B4 -> 279.8372219 | D4: =Reference_demand * (C4 / Reference_price)^Demand_elasticity -> 234.1392245 | E4: =Reference_supply * (C4 / Reference_price)^Supply_elasticity -> 166.8361688 | F4: =D4 / E4 -> 1.403408063 | G4: =C3 * F3 ^ Sensitivity -> 359.6744438
A5: =A4 + step -> 3 | B5: =(G5 - C4) / Adjustment_time_for_price -> 56.44429579 | C5: 336.2815177 | D5: =Reference_demand * (C5 / Reference_price)^Demand_elasticity -> 224.0026605 | E5: =Reference_supply * (C5 / Reference_price)^Supply_elasticity -> 182.8021884 | F5: 1.225382817 | G5: =C4 * F4 ^ Sensitivity -> 392.7258135
A6: =A5 + step -> 4 | B6: =(G6 - C5) / Adjustment_time_for_price -> 37.89603785 | C6: 374.1775556 | D6: =Reference_demand * (C6 / Reference_price)^Demand_elasticity -> 218.3146073 | E6: =Reference_supply * (C6 / Reference_price)^Supply_elasticity -> 192.7738511 | F6: 1.132490771 | G6: =C5 * F5 ^ Sensitivity -> 412.0735934
A7: =A6 + step -> 5 | B7: =(G7 - C6) / Adjustment_time_for_price -> 24.78753638 | C7: 398.965092 | D7: =Reference_demand * (C7 / Reference_price)^Demand_elasticity -> 214.9674873 | E7: =Reference_supply * (C7 / Reference_price)^Supply_elasticity -> 199.0234458 | F7: 1.080111373 | G7: =C6 * F6 ^ Sensitivity -> 423.7526283
A8: =A7 + step -> 6 | B8: =(G8 - C7) / Adjustment_time_for_price -> 15.98082063 | C8: 414.9459126 | D8: =Reference_demand * (C8 / Reference_price)^Demand_elasticity -> 212.9434677 | E8: =Reference_supply * (C8 / Reference_price)^Supply_elasticity -> 202.9495854 | F8: 1.049243177 | G8: =C7 * F7 ^ Sensitivity -> 430.9267332
A9: =A8 + step -> 7 | B9: =(G9 - C8) / Adjustment_time_for_price -> 10.21662749 | C9: 425.1625401 | D9: =Reference_demand * (C9 / Reference_price)^Demand_elasticity -> 211.6995178 | E9: =Reference_supply * (C9 / Reference_price)^Supply_elasticity -> 205.4198656 | F9: 1.030569839 | G9: =C8 * F8 ^ Sensitivity -> 435.3791676
A10: =A9 + step -> 8 | B10: =(G10 - C9) / Adjustment_time_for_price -> 6.498575202 | C10: 431.6611153 | D10: =Reference_demand * (C10 / Reference_price)^Demand_elasticity -> 210.9274094 | E10: =Reference_supply * (C10 / Reference_price)^Supply_elasticity -> 206.9756577 | F10: 1.019092833 | G10: =C9 * F9 ^ Sensitivity -> 438.1596905
A11: =A10 + step -> 9 | B11: =(G11 - C10) / Adjustment_time_for_price -> 4.120816843 | C11: 435.7819321 | D11: =Reference_demand * (C11 / Reference_price)^Demand_elasticity -> 210.4452415 | E11: =Reference_supply * (C11 / Reference_price)^Supply_elasticity -> 207.9561093 | F11: 1.011969508 | G11: =C10 * F10 ^ Sensitivity -> 439.902749
A12: =A11 + step -> 10 | B12: =(G12 - C11) / Adjustment_time_for_price -> 2.608047565 | C12: 438.3899797 | D12: =Reference_demand * (C12 / Reference_price)^Demand_elasticity -> 210.1429934 | E12: =Reference_supply * (C12 / Reference_price)^Supply_elasticity -> 208.5742266 | F12: 1.007521384 | G12: =C11 * F11 ^ Sensitivity -> 440.9980272
A13: =A12 + step -> 11 | B13: =(G13 - C12) / Adjustment_time_for_price -> 1.648649642 | C13: =C12 + B13 -> 440.0386293 | D13: =Reference_demand * (C13 / Reference_price)^Demand_elasticity -> 209.9530791 | E13: =Reference_supply * (C13 / Reference_price)^Supply_elasticity -> 208.9640098 | F13: =D13 / E13 -> 1.004733204 | G13: =C12 * F12 ^ Sensitivity -> 441.687279
A14: =A13 + step -> 12 | B14: =(G14 - C13) / Adjustment_time_for_price -> 1.041396294 | C14: 441.0800256 | D14: =Reference_demand * (C14 / Reference_price)^Demand_elasticity -> 209.8335711 | E14: =Reference_supply * (C14 / Reference_price)^Supply_elasticity -> 209.2098446 | F14: 1.002981344 | G14: =C13 * F13 ^ Sensitivity -> 442.1214219
A15: =A14 + step -> 13 | B15: =(G15 - C14) / Adjustment_time_for_price -> 0.6575056275 | C15: 441.7375312 | D15: =Reference_demand * (C15 / Reference_price)^Demand_elasticity -> 209.7582976 | E15: =Reference_supply * (C15 / Reference_price)^Supply_elasticity -> 209.3649069 | F15: 1.001878971 | G15: =C14 * F14 ^ Sensitivity -> 442.3950369
A16: =A15 + step -> 14 | B16: =(G16 - C15) / Adjustment_time_for_price -> 0.41500609 | C16: 442.1525373 | D16: =Reference_demand * (C16 / Reference_price)^Demand_elasticity -> 209.7108578 | E16: =Reference_supply * (C16 / Reference_price)^Supply_elasticity -> 209.4627198 | F16: 1.00118464 | G16: =C15 * F15 ^ Sensitivity -> 442.5675434
A17: =A16 + step -> 15 | B17: =(G17 - C16) / Adjustment_time_for_price -> 0.261895828 | C17: =C16 + B17 -> 442.4144332 | D17: =Reference_demand * (C17 / Reference_price)^Demand_elasticity -> 209.6809486 | E17: =Reference_supply * (C17 / Reference_price)^Supply_elasticity -> 209.5244224 | F17: =D17 / E17 -> 1.000747055 | G17: =C16 * F16 ^ Sensitivity -> 442.676329
A18: =A17 + step -> 16 | B18: =(G18 - C17) / Adjustment_time_for_price -> 0.1652539018 | C18: 442.5796871 | D18: =Reference_demand * (C18 / Reference_price)^Demand_elasticity -> 209.6620875 | E18: =Reference_supply * (C18 / Reference_price)^Supply_elasticity -> 209.5633467 | F18: 1.000471174 | G18: =C17 * F17 ^ Sensitivity -> 442.744941
A19: =A18 + step -> 17 | B19: =(G19 - C18) / Adjustment_time_for_price -> 0.1042660051 | C19: 442.6839531 | D19: =Reference_demand * (C19 / Reference_price)^Demand_elasticity -> 209.6501917 | E19: =Reference_supply * (C19 / Reference_price)^Supply_elasticity -> 209.587902 | F19: 1.000297201 | G19: =C18 * F18 ^ Sensitivity -> 442.7882191
A20: =A19 + step -> 18 | B20: =(G20 - C19) / Adjustment_time_for_price -> 0.06578297127 | C20: 442.749736 | D20: =Reference_demand * (C20 / Reference_price)^Demand_elasticity -> 209.6426882 | E20: =Reference_supply * (C20 / Reference_price)^Supply_elasticity -> 209.6033929 | F20: 1.000187475 | G20: =C19 * F19 ^ Sensitivity -> 442.815519
A21: =A20 + step -> 19 | B21: =(G21 - C20) / Adjustment_time_for_price -> 0.04150223252 | C21: 442.7912383 | D21: =Reference_demand * (C21 / Reference_price)^Demand_elasticity -> 209.637955 | E21: =Reference_supply * (C21 / Reference_price)^Supply_elasticity -> 209.6131654 | F21: 1.000118264 | G21: =C20 * F20 ^ Sensitivity -> 442.8327405
A22: =A21 + step -> 20 | B22: =(G22 - C21) / Adjustment_time_for_price -> 0.02618311861 | C22: 442.8174214 | D22: =Reference_demand * (C22 / Reference_price)^Demand_elasticity -> 209.6349692 | E22: =Reference_supply * (C22 / Reference_price)^Supply_elasticity -> 209.6193304 | F22: 1.000074606 | G22: =C21 * F21 ^ Sensitivity -> 442.8436045
A23: =A22 + step -> 21
A24: =A23 + step -> 22
A25: =A24 + step -> 23
A26: =A25 + step -> 24
A27: =A26 + step -> 25
A28: =A27 + step -> 26
A29: =A28 + step -> 27
A30: =A29 + step -> 28
A31: =A30 + step -> 29
A32: =A31 + step -> 30
A33: =A32 + step -> 31
A34: =A33 + step -> 32
A35: =A34 + step -> 33
A36: =A35 + step -> 34
A37: =A36 + step -> 35
A38: =A37 + step -> 36
A39: =A38 + step -> 37
A40: =A39 + step -> 38
A41: =A40 + step -> 39
A42: =A41 + step -> 40
A43: =A42 + step -> 41
A44: =A43 + step -> 42
A45: =A44 + step -> 43
A46: =A45 + step -> 44
A47: =A46 + step -> 45
A48: =A47 + step -> 46
A49: =A48 + step -> 47
A50: =A49 + step -> 48
A51: =A50 + step -> 49
A52: =A51 + step -> 50
A53: =A52 + step -> 51
A54: =A53 + step -> 52
A55: =A54 + step -> 53
A56: =A55 + step -> 54
A57: =A56 + step -> 55
A58: =A57 + step -> 56
A59: =A58 + step -> 57
A60: =A59 + step -> 58
A61: =A60 + step -> 59
A62: =A61 + step -> 60
A63: =A62 + step -> 61
A64: =A63 + step -> 62
A65: =A64 + step -> 63
A66: =A65 + step -> 64
A67: =A66 + step -> 65
A68: =A67 + step -> 66
A69: =A68 + step -> 67
A70: =A69 + step -> 68
A71: =A70 + step -> 69
A72: =A71 + step -> 70
A73: =A72 + step -> 71
A74: =A73 + step -> 72
A75: =A74 + step -> 73
A76: =A75 + step -> 74
A77: =A76 + step -> 75
A78: =A77 + step -> 76
A79: =A78 + step -> 77
A80: =A79 + step -> 78
A81: =A80 + step -> 79
A82: =A81 + step -> 80
A83: =A82 + step -> 81
A84: =A83 + step -> 82
A85: =A84 + step -> 83
A86: =A85 + step -> 84
A87: =A86 + step -> 85
A88: =A87 + step -> 86
A89: =A88 + step -> 87
A90: =A89 + step -> 88
A91: =A90 + step -> 89
A92: =A91 + step -> 90
A93: =A92 + step -> 91
A94: =A93 + step -> 92
A95: =A94 + step -> 93
A96: =A95 + step -> 94
A97: =A96 + step -> 95
A98: =A97 + step -> 96
A99: =A98 + step -> 97
A100: =A99 + step -> 98
A101: =A100 + step -> 99
A102: =A101 + step -> 100

Sheet synthetic-data
K1: median | L1: =MEDIAN( L9:L108) -> 200 | M1: =MEDIAN( M9:M108) -> 278.7137631 | N1: 333.7039871 | O1: 370.2466392 | P1: 393.9296282 | Q1: 409.0684587 | R1: 418.6687409 | S1: 424.7278264 | T1: 428.5408736 | U1: 430.9361947 | V1: 432.439255 | W1: 433.3817768
K2: mean abs deviation | L2: =AVEDEV( L9:L108 ) -> 0 | M2: =AVEDEV( M9:M108 ) -> 7.821594531 | N2: 18.00981415 | O2: 27.66945955 | P2: 35.7275865 | Q2: 42.02734789 | R2: 46.78611837 | S2: 50.28474645 | T2: 52.82701319 | U2: 54.6518187 | V2: 55.94578482 | W2: 56.85800294
K3: sampled | L3: =INDEX( L9:L108, MATCH( RANDBETWEEN( 1, 100 ), $G$9:$G$108, 0), ) -> 200 | M3: =INDEX( M9:M108, MATCH( RANDBETWEEN( 1, 100 ), $G$9:$G$108, 0), ) -> 279.9107636 | N3: =INDEX( N9:N108, MATCH( RANDBETWEEN( 1, 100 ), $G$9:$G$108, 0), ) -> 352.2618967 | O3: =INDEX( O9:O108, MATCH( RANDBETWEEN( 1, 100 ), $G$9:$G$108, 0), ) -> 478.8251287 | P3: =INDEX( P9:P108, MATCH( RANDBETWEEN( 1, 100 ), $G$9:$G$108, 0), ) -> 336.7027128 | Q3: =INDEX( Q9:Q108, MATCH( RANDBETWEEN( 1, 100 ), $G$9:$G$108, 0), ) -> 453.4607444 | R3: =INDEX( R9:R108, MATCH( RANDBETWEEN( 1, 100 ), $G$9:$G$108, 0), ) -> 553.4821417 | S3: =INDEX( S9:S108, MATCH( RANDBETWEEN( 1, 100 ), $G$9:$G$108, 0), ) -> 502.5815783 | T3: =INDEX( T9:T108, MATCH( RANDBETWEEN( 1, 100 ), $G$9:$G$108, 0), ) -> 521.7446676 | U3: =INDEX( U9:U108, MATCH( RANDBETWEEN( 1, 100 ), $G$9:$G$108, 0), ) -> 516.4642432 | V3: =INDEX( V9:V108, MATCH( RANDBETWEEN( 1, 100 ), $G$9:$G$108, 0), ) -> 433.5094607 | W3: =INDEX( W9:W108, MATCH( RANDBETWEEN( 1, 100 ), $G$9:$G$108, 0), ) -> 585.9521274
L4: 1 | M4: =L4+1 -> 2 | N4: =M4+1 -> 3 | O4: 4 | P4: 5 | Q4: 6 | R4: 7 | S4: 8 | T4: 9 | U4: 10 | V4: 11 | W4: 12
H5: =inputs!E3 -> mean_demand_elasticity | I5: =inputs!B4 -> Demand elasticity | J5: =inputs!E9 -> mean_supply_elasticity | K5: =inputs!B10 -> Supply elasticity | L5: =simulation!$C1&"_"&L4 -> Price_1 | M5: =simulation!$C1&"_"&M4 -> Price_2 | N5: =simulation!$C1&"_"&N4 -> Price_3 | O5: =simulation!$C1&"_"&O4 -> Price_4 | P5: =simulation!$C1&"_"&P4 -> Price_5 | Q5: =simulation!$C1&"_"&Q4 -> Price_6 | R5: =simulation!$C1&"_"&R4 -> Price_7 | S5: =simulation!$C1&"_"&S4 -> Price_8 | T5: =simulation!$C1&"_"&T4 -> Price_9 | U5: =simulation!$C1&"_"&U4 -> Price_10 | V5: =simulation!$C1&"_"&V4 -> Price_11 | W5: =simulation!$C1&"_"&W4 -> Price_12
H6: =inputs!E4 -> -0.2569637062 | I6: =Demand_elasticity -> -0.2408721394 | J6: =inputs!E10 -> 0.4911239152 | K6: =Supply_elasticity -> 0.4973987069 | L6: =TRANSPOSE( simulation!C3:C14 ) -> 200 | M6: 279.8372219 | N6: 336.2815177 | O6: 374.1775556 | P6: 398.965092 | Q6: 414.9459126 | R6: 425.1625401 | S6: 431.6611153 | T6: 435.7819321 | U6: 438.3899797 | V6: 440.0386293 | W6: 441.0800256
A8: month | B8: =simulation!C1 -> Price | C8: =simulation!D1 -> Demand | D8: =simulation!E1 -> Supply | E8: Price Scenarios | G8: run | H8: =H5 -> mean_demand_elasticity | I8: =I5 -> Demand elasticity | J8: mean_supply_elasticity | K8: Supply elasticity | L8: Price_1 | M8: Price_2 | N8: Price_3 | O8: Price_4 | P8: Price_5 | Q8: Price_6 | R8: Price_7 | S8: Price_8 | T8: Price_9 | U8: Price_10 | V8: Price_11 | W8: Price_12
A9: 1 | B9: =simulation!C3 -> 200 | C9: =simulation!D3 -> 253.8700775 | D9: =simulation!E3 -> 141.1665921 | E9: =TRANSPOSE( L3:W3 ) -> 200 | G9: 1 | H9: -0.2348278562 | I9: -0.1818136914 | J9: 0.487667321 | K9: 0.50943423 | L9: 200 | M9: 285.7953737 | N9: 350.3409084 | O9: 396.0746381 | P9: 427.4704654 | Q9: 448.6362151 | R9: 462.7503525 | S9: 472.0986566 | T9: 478.2639052 | U9: 482.318779 | V9: 484.9809491 | W9: 486.726756
A10: =A9+1 -> 2 | B10: =simulation!C4 -> 279.8372219 | C10: =simulation!D4 -> 234.1392245 | D10: =simulation!E4 -> 166.8361688 | E10: 279.9107636 | G10: =G9+1 -> 2 | H10: -0.2557884008 | I10: -0.2646576731 | J10: 0.5282427518 | K10: 0.4839529387 | L10: 200 | M10: 278.55294 | N10: 333.3366122 | O10: 369.6881553 | P10: 393.2159466 | Q10: 408.2369895 | R10: 417.7513976 | S10: 423.7494833 | T10: 427.5199699 | U10: 429.885979 | V10: 431.3690493 | W10: 432.2980428
A11: =A10+1 -> 3 | B11: =simulation!C5 -> 336.2815177 | C11: =simulation!D5 -> 224.0026605 | D11: =simulation!E5 -> 182.8021884 | E11: 352.2618967 | G11: =G10+1 -> 3 | H11: -0.24205825 | I11: -0.2693791924 | J11: 0.5101100737 | K11: 0.4450115867 | L11: 200 | M11: 282.8387323 | N11: 343.2815314 | O11: 384.9835524 | P11: 412.9361112 | Q11: 431.3699346 | R11: 443.4097187 | S11: 451.2271082 | T11: 456.2843199 | U11: 459.5483699 | V11: 461.6519819 | W11: 463.0064493
A12: 4 | B12: =simulation!C6 -> 374.1775556 | C12: =simulation!D6 -> 218.3146073 | D12: =simulation!E6 -> 192.7738511 | E12: 478.8251287 | G12: 4 | H12: -0.2583191997 | I12: -0.2987693151 | J12: 0.5074121979 | K12: 0.5005674343 | L12: 200 | M12: 272.3839852 | N12: 319.5991194 | O12: 349.1852031 | P12: 367.3728819 | Q12: 378.440934 | R12: 385.1384215 | S12: 389.1780499 | T12: 391.609945 | U12: 393.0723232 | V12: 393.9511108 | W12: 394.47899
A13: 5 | B13: =simulation!C7 -> 398.965092 | C13: =simulation!D7 -> 214.9674873 | D13: =simulation!E7 -> 199.0234458 | E13: 336.7027128 | G13: 5 | H13: -0.2392205199 | I13: -0.2770163182 | J13: 0.5014483105 | K13: 0.5067524837 | L13: 200 | M13: 274.2542325 | N13: 323.6936232 | O13: 355.2208541 | P13: 374.9100246 | Q13: 387.069562 | R13: 394.5317846 | S13: 399.0945275 | T13: 401.8783409 | U13: 403.5745892 | V13: 404.6073473 | W13: 405.2358427
A14: 6 | B14: =simulation!C8 -> 414.9459126 | C14: =simulation!D8 -> 212.9434677 | D14: =simulation!E8 -> 202.9495854 | E14: 453.4607444 | G14: 6 | H14: -0.2514601271 | I14: -0.2395980186 | J14: 0.497137371 | K14: 0.4559836528 | L14: 200 | M14: 285.2380955 | N14: 348.9977009 | O14: 393.9492608 | P14: 424.669999 | Q14: 445.2951679 | R14: 458.9954001 | S14: 468.0358495 | T14: 473.9766291 | U14: 477.870151 | V14: 480.4175652 | W14: 482.0824216
A15: 7 | B15: =simulation!C9 -> 425.1625401 | C15: =simulation!D9 -> 211.6995178 | D15: =simulation!E9 -> 205.4198656 | E15: 553.4821417 | G15: 7 | H15: -0.2613398006 | I15: -0.2450174284 | J15: 0.4961228271 | K15: 0.490224199 | L15: 200 | M15: 280.2152219 | N15: 337.1539813 | O15: 375.514024 | P15: 400.6828407 | Q15: 416.9560593 | R15: 427.3879056 | S15: 434.0407415 | T15: 438.2701244 | U15: 440.9535762 | V15: 442.6540787 | W15: 443.7308565
A16: 8 | B16: =simulation!C10 -> 431.6611153 | C16: =simulation!D10 -> 210.9274094 | D16: =simulation!E10 -> 206.9756577 | E16: 502.5815783 | G16: 8 | H16: -0.2577208456 | I16: -0.1889335208 | J16: 0.4862615867 | K16: 0.4724526014 | L16: 200 | M16: 289.6811584 | N16: 359.8729611 | O16: 411.3619227 | P16: 447.8262702 | Q16: 473.1234387 | R16: 490.4525284 | S16: 502.2285463 | T16: 510.1896855 | U16: 515.553637 | V16: 519.1596577 | W16: 521.5803066
A17: 9 | B17: =simulation!C11 -> 435.7819321 | C17: =simulation!D11 -> 210.4452415 | D17: =simulation!E11 -> 207.9561093 | E17: 521.7446676 | G17: 9 | H17: -0.2451800537 | I17: -0.3346860311 | J17: 0.4885447049 | K17: 0.5118799611 | L17: 200 | M17: 266.8320544 | N17: 307.7936142 | O17: 332.1375104 | P17: 346.4033954 | Q17: 354.7037372 | R17: 359.5145318 | S17: 362.2968519 | T17: 363.9040603 | U17: 364.8318258 | V17: 365.3671697 | W17: 365.6760066
A18: 10 | B18: =simulation!C12 -> 438.3899797 | C18: =simulation!D12 -> 210.1429934 | D18: =simulation!E12 -> 208.5742266 | E18: 516.4642432 | G18: 10 | H18: -0.2596850453 | I18: -0.269243665 | J18: 0.5223549449 | K18: 0.5320145718 | L18: 200 | M18: 272.1545443 | N18: 319.1009491 | O18: 348.455198 | P18: 366.4652713 | Q18: 377.4053211 | R18: 384.0138396 | S18: 387.9930725 | T18: 390.3846384 | U18: 391.8204112 | V18: 392.6818098 | W18: 393.1984078
A19: 11 | B19: =simulation!C13 -> 440.0386293 | C19: =simulation!D13 -> 209.9530791 | D19: =simulation!E13 -> 208.9640098 | E19: 433.5094607 | G19: 11 | H19: -0.2378247724 | I19: -0.2027830652 | J19: 0.5039999731 | K19: 0.5367531408 | L19: 200 | M19: 279.6795593 | N19: 335.9183838 | O19: 373.6221622 | P19: 398.2520954 | Q19: 414.1123088 | R19: 424.2403362 | S19: 430.6755225 | T19: 434.751806 | U19: 437.3289761 | V19: 438.9564283 | W19: 439.9833848
A20: 12 | B20: =simulation!C14 -> 441.0800256 | C20: =simulation!D14 -> 209.8335711 | D20: =simulation!E14 -> 209.2098446 | E20: 585.9521274 | G20: 12 | H20: -0.2518767559 | I20: -0.1940516707 | J20: 0.4836771471 | K20: 0.4461877799 | L20: 200 | M20: 292.4819349 | N20: 366.9272344 | O20: 422.9081091 | P20: 463.4478621 | Q20: 492.1545857 | R20: 512.2000951 | S20: 526.0726289 | T20: 535.6169868 | U20: 542.1580721 | V20: 546.6292841 | W20: 549.6802902
G21: 13 | H21: -0.2621699034 | I21: -0.1939665503 | J21: 0.5070165318 | K21: 0.5269675396 | L21: 200 | M21: 282.0113491 | N21: 341.3353621 | O21: 381.9601312 | P21: 409.0082566 | Q21: 426.7352239 | R21: 438.2456337 | S21: 445.6773542 | T21: 450.4588634 | U21: 453.5284924 | V21: 455.4963965 | W21: 456.7568868
G22: 14 | H22: -0.2679605936 | I22: -0.2323209711 | J22: 0.5027825169 | K22: 0.4773945257 | L22: 200 | M22: 283.4322114 | N22: 344.685358 | O22: 387.1735948 | P22: 415.7904441 | Q22: 434.7463468 | R22: 447.1791198 | S22: 455.2841871 | T22: 460.5479918 | U22: 463.9583747 | V22: 466.1645732 | W22: 467.5903864
G23: 15 | H23: -0.2354242914 | I23: -0.2775958205 | J23: 0.5019238999 | K23: 0.526870462 | L23: 200 | M23: 271.7721586 | N23: 318.2726971 | O23: 347.2435801 | P23: 364.9607809 | Q23: 375.6902782 | R23: 382.1527883 | S23: 386.0331236 | T23: 388.3587922 | U23: 389.7511839 | V23: 390.5842883 | W23: 391.0825685
G24: 16 | H24: -0.261627113 | I24: -0.2788642488 | J24: 0.4992585408 | K24: 0.4424727713 | L24: 200 | M24: 281.9605223 | N24: 341.216221 | O24: 381.7755213 | P24: 408.7688972 | Q24: 426.4532237 | R24: 437.9318005 | S24: 445.3403986 | T24: 450.1054254 | U24: 453.1634636 | V24: 455.1232993 | W24: 456.3782172
G25: 17 | H25: -0.2459150541 | I25: -0.09925265253 | J25: 0.4905324156 | K25: 0.4524727231 | L25: 200 | M25: 304.6611298 | N25: 399.488276 | O25: 478.8251287 | P25: 542.1020383 | Q25: 591.0592594 | R25: 628.1844853 | S25: 655.9563464 | T25: 676.5365826 | U25: 691.6871932 | V25: 702.7887421 | W25: 710.8963839
G26: 18 | H26: -0.243623482 | I26: -0.2157833442 | J26: 0.5014404276 | K26: 0.521683876 | L26: 200 | M26: 279.9374248 | N26: 336.5125431 | O26: 374.5311615 | P26: 399.4192985 | Q26: 415.4771832 | R26: 425.7504763 | S26: 432.2896285 | T26: 436.4389766 | U26: 439.0668228 | V26: 440.7290754 | W26: 441.7797454
G27: 19 | H27: -0.2304199393 | I27: -0.1914800084 | J27: 0.4942936484 | K27: 0.5462009905 | L27: 200 | M27: 279.9107636 | N27: 336.4510559 | O27: 374.4370294 | P27: 399.2983663 | Q27: 415.3357151 | R27: 425.5939039 | S27: 432.1222377 | T27: 436.263977 | U27: 438.8865421 | V27: 440.5451653 | W27: 441.5933605
G28: 20 | H28: -0.2409040466 | I28: -0.3230459249 | J28: 0.4821690892 | K28: 0.5116011244 | L28: 200 | M28: 268.2160602 | N28: 310.6884241 | O28: 336.2692459 | P28: 351.4422491 | Q28: 360.3713421 | R28: 365.6035271 | S28: 368.662086 | T28: 370.4475741 | U28: 371.4890656 | V28: 372.0963009 | W28: 372.4502525
G29: 21 | H29: -0.2395819377 | I29: -0.2299039748 | J29: 0.5070485374 | K29: 0.4307209363 | L29: 200 | M29: 289.7812665 | N29: 360.1224196 | O29: 411.7668371 | P29: 448.3705082 | Q29: 473.7829874 | R29: 491.203052 | S29: 503.0486482 | T29: 511.06188 | U29: 516.4642432 | V29: 520.0982699 | W29: 522.5391624
G30: 22 | H30: -0.2558215874 | I30: -0.28394789 | J30: 0.4844650259 | K30: 0.5382325422 | L30: 200 | M30: 269.6759474 | N30: 313.7763265 | O30: 340.7112455 | P30: 356.8904764 | Q30: 366.525312 | R30: 372.2357543 | S30: 375.6111882 | T30: 377.6033243 | U30: 378.7780024 | V30: 379.4702976 | W30: 379.8781756
G31: 23 | H31: -0.2621226543 | I31: -0.279582452 | J31: 0.5031436644 | K31: 0.4355611756 | L31: 200 | M31: 282.7433456 | N31: 343.0565145 | O31: 384.633229 | P31: 412.4802401 | Q31: 430.8313365 | R31: 442.8090032 | S31: 450.5810269 | T31: 455.605732 | U31: 458.8468068 | V31: 460.9343463 | W31: 462.277659
G32: 24 | H32: -0.2450805986 | I32: -0.1210769995 | J32: 0.5046871846 | K32: 0.5304373935 | L32: 200 | M32: 290.983514 | N32: 363.1337601 | O32: 416.6743443 | P32: 454.9873934 | Q32: 481.8219254 | R32: 500.3691598 | S32: 513.0805599 | T32: 521.7446676 | U32: 527.6288595 | V32: 531.6155315 | W32: 534.3122853
G33: 25 | H33: -0.2463120072 | I33: -0.2044726636 | J33: 0.4909178657 | K33: 0.4998580406 | L33: 200 | M33: 284.118143 | N33: 346.3160858 | O33: 389.7272775 | P33: 419.1284267 | Q33: 438.7038357 | R33: 451.6050791 | S33: 460.0545558 | T33: 465.5667127 | U33: 469.1537091 | V33: 471.4842062 | W33: 472.9967989
G34: 26 | H34: -0.2648807056 | I34: -0.2317001221 | J34: 0.4977730614 | K34: 0.5192905303 | L34: 200 | M34: 278.2586207 | N34: 332.6659169 | O34: 368.6703781 | P34: 391.9170871 | Q34: 406.7253229 | R34: 416.0849303 | S34: 421.973288 | T34: 425.6673718 | U34: 427.9808666 | V34: 429.4281936 | W34: 430.3330449
G35: 27 | H35: -0.2508029243 | I35: -0.1761861726 | J35: 0.4935418521 | K35: 0.503523086 | L35: 200 | M35: 287.2873219 | N35: 353.9661817 | O35: 401.8464177 | P35: 435.1120064 | Q35: 457.7871245 | R35: 473.0654635 | S35: 483.2856426 | T35: 490.0907791 | U35: 494.6085295 | V35: 497.6019436 | W35: 499.58284
G36: 28 | H36: -0.2487293112 | I36: -0.2266918675 | J36: 0.5085400009 | K36: 0.5315381819 | L36: 200 | M36: 277.3663653 | N36: 330.6421272 | O36: 365.6097702 | P36: 388.0212749 | Q36: 402.2001429 | R36: 411.103906 | S36: 416.6704609 | T36: 420.1413544 | U36: 422.3020297 | V36: 423.645734 | W36: 424.4808568
G37: 29 | H37: -0.2522543022 | I37: -0.2927266332 | J37: 0.4860153291 | K37: 0.4713016751 | L37: 200 | M37: 276.6549521 | N37: 329.0386864 | O37: 363.1960259 | P37: 384.9594954 | Q37: 398.653149 | R37: 407.2075395 | S37: 412.5288259 | T37: 415.8305227 | U37: 417.8759558 | V37: 419.1419221 | W37: 419.9250027
G38: 30 | H38: -0.2619860067 | I38: -0.1939485408 | J38: 0.4955852641 | K38: 0.4949549112 | L38: 200 | M38: 286.0975483 | N38: 351.0717146 | O38: 397.2339834 | P38: 429.0011033 | Q38: 450.4651695 | R38: 464.8084179 | S38: 474.3276172 | T38: 480.6178112 | U38: 484.7627335 | V38: 487.4891119 | W38: 489.2803266
G39: 31 | H39: -0.2636389604 | I39: -0.2851488693 | J39: 0.4941892466 | K39: 0.5028059168 | L39: 200 | M39: 273.7493661 | N39: 322.5823763 | O39: 353.5764826 | P39: 372.8507399 | Q39: 384.7070191 | R39: 391.9556979 | S39: 396.371668 | T39: 399.0562846 | U39: 400.6863118 | V39: 401.6752773 | W39: 402.275028
G40: 32 | H40: -0.2599413051 | I40: -0.2291843056 | J40: 0.4942709605 | K40: 0.5858135877 | L40: 200 | M40: 270.522795 | N40: 315.5838829 | O40: 343.3280961 | P40: 360.1151219 | Q40: 370.1803088 | R40: 376.1849765 | S40: 379.7570141 | T40: 381.8784296 | U40: 383.1371128 | V40: 383.8834944 | W40: 384.3259402
G41: 33 | H41: -0.2449286823 | I41: -0.2935942819 | J41: 0.5038962927 | K41: 0.5209982427 | L41: 200 | M41: 270.5707153 | N41: 315.6865273 | O41: 343.4770668 | P41: 360.2990274 | Q41: 370.3890406 | R41: 376.4107395 | S41: 379.9941947 | T41: 382.123142 | U41: 383.3867346 | V41: 384.1362869 | W41: 384.5807655
G42: 34 | H42: -0.2390432176 | I42: -0.2548314836 | J42: 0.5067995309 | K42: 0.5130991459 | L42: 200 | M42: 276.1777668 | N42: 327.9681939 | O42: 361.5900407 | P42: 382.9275455 | Q42: 396.3037709 | R42: 404.6306001 | S42: 409.7927945 | T42: 412.9851824 | U42: 414.9564553 | V42: 416.1725894 | W42: 416.9224379
G43: 35 | H43: -0.2582970926 | I43: -0.2551311323 | J43: 0.4882064594 | K43: 0.497998619 | L43: 200 | M43: 277.9945107 | N43: 332.0653858 | O43: 367.7605433 | P43: 390.7573927 | Q43: 405.3768796 | R43: 414.5994664 | S43: 420.3908863 | T43: 424.0175982 | U43: 426.2848699 | V43: 427.7007918 | W43: 428.5844687
G44: 36 | H44: -0.2664213755 | I44: -0.2763571337 | J44: 0.5218574237 | K44: 0.581521241 | L44: 200 | M44: 265.5290152 | N44: 305.0968312 | O44: 328.3166264 | P44: 341.7684062 | Q44: 349.5107925 | R44: 353.9515821 | S44: 356.4938122 | T44: 357.9476132 | U44: 358.7784828 | V44: 359.253175 | W44: 359.5243232
G45: 37 | H45: -0.2360985666 | I45: -0.3098325529 | J45: 0.5093857831 | K45: 0.4815899602 | L45: 200 | M45: 273.3322358 | N45: 321.6675711 | O45: 352.2263204 | P45: 371.1631703 | Q45: 382.7737566 | R45: 389.850023 | S45: 394.1478796 | T45: 396.7529232 | U45: 398.3299958 | V45: 399.2840504 | W45: 399.8609569
G46: 38 | H46: -0.2445480628 | I46: -0.2041631407 | J46: 0.5007715131 | K46: 0.456350128 | L46: 200 | M46: 289.7959532 | N46: 360.159034 | O46: 411.8262894 | P46: 448.450439 | Q46: 473.8798747 | R46: 491.3133227 | S46: 503.1691584 | T46: 511.1900592 | U46: 516.5980793 | V46: 520.2362318 | W46: 522.6801076
G47: 39 | H47: -0.2302577393 | I47: -0.2188226155 | J47: 0.4864524778 | K47: 0.5856219807 | L47: 200 | M47: 271.7747406 | N47: 318.2782815 | O47: 347.2517406 | P47: 364.970906 | Q47: 375.7018135 | R47: 382.1653001 | S47: 386.0462959 | T47: 388.3724041 | U47: 389.7650847 | V47: 390.5983774 | W47: 391.0967792
G48: 40 | H48: -0.2689667229 | I48: -0.3275877176 | J48: 0.4948575619 | K48: 0.5067951108 | L48: 200 | M48: 268.2468708 | N48: 310.7532276 | O48: 336.3620988 | P48: 351.5558072 | Q48: 360.4993356 | R48: 365.7412485 | S48: 368.8062178 | T48: 370.5958645 | U48: 371.6400222 | V48: 372.2489515 | W48: 372.6039714
G49: 41 | H49: -0.2638711881 | I49: -0.3292597229 | J49: 0.4999753424 | K49: 0.5413859648 | L49: 200 | M49: 264.0706079 | N49: 302.1111218 | O49: 324.1180294 | P49: 336.7027128 | Q49: 343.8577258 | R49: 347.9132614 | S49: 350.2081485 | T49: 351.5055469 | U49: 352.2386438 | V49: 352.6527615 | W49: 352.8866536
G50: 42 | H50: -0.2480594963 | I50: -0.2248051745 | J50: 0.4987977762 | K50: 0.4945081251 | L50: 200 | M50: 282.215944 | N50: 341.8154281 | O50: 382.7045554 | P50: 409.9740087 | Q50: 427.8735276 | R50: 439.5128725 | S50: 447.0383281 | T50: 451.8867094 | U50: 455.0034026 | V50: 457.0040944 | W50: 458.2872465
G51: 43 | H51: -0.2401255789 | I51: -0.2190998663 | J51: 0.5072745776 | K51: 0.599069215 | L51: 200 | M51: 270.1483805 | N51: 314.7832261 | O51: 342.1674433 | P51: 358.6835212 | Q51: 368.5564926 | R51: 374.429509 | S51: 377.913425 | T51: 379.976798 | U51: 381.1977032 | V51: 381.9197218 | W51: 382.3465714
G52: 44 | H52: -0.2455754837 | I52: -0.2805315176 | J52: 0.4949439043 | K52: 0.4438090435 | L52: 200 | M52: 281.5820935 | N52: 340.3306619 | O52: 380.4050715 | P52: 406.9937251 | Q52: 424.3633712 | R52: 435.607389 | S52: 442.8458577 | T52: 447.4897796 | U52: 450.4627683 | V52: 452.3634783 | W52: 453.5776156
G53: 45 | H53: -0.2634536429 | I53: -0.2694277152 | J53: 0.52202473 | K53: 0.4659270184 | L53: 200 | M53: 280.2010937 | N53: 337.1213252 | O53: 375.4639472 | P53: 400.6184258 | Q53: 416.8806328 | R53: 427.3043635 | S53: 433.9513753 | T53: 438.1766543 | U53: 440.8572524 | V53: 442.5557904 | W53: 443.6312262
G54: 46 | H54: -0.2549873142 | I54: -0.2589085511 | J54: 0.5022994389 | K54: 0.5358450433 | L54: 200 | M54: 272.9324856 | N54: 320.7936981 | O54: 350.9395385 | P54: 369.5575655 | Q54: 380.9367576 | R54: 387.8511422 | S54: 392.038423 | T54: 394.5691827 | U54: 396.0969581 | V54: 397.0186026 | W54: 397.5743594
G55: 47 | H55: -0.2689261231 | I55: -0.2375341601 | J55: 0.5100162687 | K55: 0.5433129729 | L55: 200 | M55: 274.6074805 | N55: 324.4737794 | O55: 356.3781013 | P55: 376.3618933 | Q55: 388.7375133 | R55: 396.3523812 | S55: 401.0203597 | T55: 403.8755071 | U55: 405.6195142 | V55: 406.6839461 | W55: 407.3332909
G56: 48 | H56: -0.256333693 | I56: -0.2317059218 | J56: 0.4980977801 | K56: 0.3902064986 | L56: 200 | M56: 294.9426931 | N56: 373.2553799 | O56: 433.4359282 | P56: 477.876759 | Q56: 509.9152152 | R56: 532.6650089 | S56: 548.6608983 | T56: 559.8349262 | U56: 567.606591 | V56: 572.9959294 | W56: 576.7257171
G57: 49 | H57: -0.2422262323 | I57: -0.2826233372 | J57: 0.5008469459 | K57: 0.5567708497 | L57: 200 | M57: 267.6634608 | N57: 309.5288139 | O57: 334.6103749 | P57: 349.415834 | Q57: 358.0892968 | R57: 363.1496083 | S57: 366.0951496 | T57: 367.8074787 | U57: 368.8021629 | V57: 369.379722 | W57: 369.714996
G58: 50 | H58: -0.2535525028 | I58: -0.2590777349 | J58: 0.4948911816 | K58: 0.5430207287 | L58: 200 | M58: 272.0543106 | N58: 318.8836004 | O58: 348.1369956 | P58: 366.0699225 | Q58: 376.9544466 | R58: 383.5244196 | S58: 387.4775175 | T58: 389.851652 | U58: 391.2759383 | V58: 392.1298379 | W58: 392.6415763
G59: 51 | H59: -0.2472634939 | I59: -0.1914704662 | J59: 0.5091996326 | K59: 0.3783508166 | L59: 200 | M59: 302.1100718 | N59: 392.4054847 | O59: 466.2895983 | P59: 524.0374319 | Q59: 567.8948656 | R59: 600.5841504 | S59: 624.644513 | T59: 642.2019725 | U59: 654.9379386 | V59: 664.1380181 | W59: 670.7644087
G60: 52 | H60: -0.2402255015 | I60: -0.2374255057 | J60: 0.5023241655 | K60: 0.5085885661 | L60: 200 | M60: 278.8745861 | N60: 334.0713619 | O60: 370.8051231 | P60: 394.6433099 | Q60: 409.899928 | R60: 419.5860842 | S60: 425.7061696 | T60: 429.5617774 | U60: 431.9864104 | V60: 433.5094607 | W60: 434.4655107
G61: 53 | H61: -0.2542830192 | I61: -0.2308705768 | J61: 0.4977458193 | K61: 0.6097784067 | L61: 200 | M61: 267.5176974 | N61: 309.2237745 | O61: 334.1748409 | P61: 348.8845445 | Q61: 357.4916027 | R61: 362.5073887 | S61: 365.423729 | T61: 367.1172042 | U61: 368.0998564 | V61: 368.6698065 | W61: 369.0003036
G62: 54 | H62: -0.2469249234 | I62: -0.1206073573 | J62: 0.4963254592 | K62: 0.5404507721 | L62: 200 | M62: 289.7242868 | N62: 359.9804082 | O62: 411.5362976 | P62: 448.0606122 | Q62: 473.4074011 | R62: 490.7756312 | S62: 502.5815783 | T62: 510.5651213 | U62: 515.9455899 | V62: 519.5636512 | W62: 521.9930021
G63: 55 | H63: -0.2288425521 | I63: -0.1304286794 | J63: 0.4994630331 | K63: 0.5424389551 | L63: 200 | M63: 288.1775949 | N63: 356.1498886 | O63: 405.3481334 | P63: 439.7740528 | Q63: 463.394604 | R63: 479.4083495 | S63: 490.1836185 | T63: 497.3991953 | U63: 502.2159861 | V63: 505.4249023 | W63: 507.5597993
G64: 56 | H64: -0.2550637447 | I64: -0.2075838693 | J64: 0.511209902 | K64: 0.4781983046 | L64: 200 | M64: 286.5006071 | N64: 352.0492267 | O64: 398.7879886 | P64: 431.0561674 | Q64: 452.9239269 | R64: 467.5779974 | S64: 477.3295852 | T64: 483.7900633 | U64: 488.0579747 | V64: 490.872234 | W64: 492.7257265
G65: 57 | H65: -0.2451846835 | I65: -0.2991914374 | J65: 0.4767133563 | K65: 0.4339425905 | L65: 200 | M65: 280.4786864 | N65: 337.7636252 | O65: 376.4496442 | P65: 401.8870921 | Q65: 418.3668423 | R65: 428.9510592 | S65: 435.7133476 | T65: 440.0199233 | U65: 442.7570987 | V65: 444.4946196 | W65: 445.5967069
G66: 58 | H66: -0.2397911124 | I66: -0.2422417293 | J66: 0.5053776246 | K66: 0.5132213799 | L66: 200 | M66: 277.7068621 | N66: 331.4127537 | O66: 366.7733451 | P66: 389.5005977 | Q66: 403.9168718 | R66: 412.9922354 | S66: 418.6796978 | T66: 422.234292 | U66: 424.4521731 | V66: 425.8345974 | W66: 426.6957285
G67: 59 | H67: -0.2506196237 | I67: -0.2620659025 | J67: 0.4991940561 | K67: 0.5332949771 | L67: 200 | M67: 272.859707 | N67: 320.6348967 | O67: 350.7060138 | P67: 369.2664683 | Q67: 380.6039557 | R67: 387.4892159 | S67: 391.6566365 | T67: 394.1740764 | U67: 395.6930266 | V67: 396.6088784 | W67: 397.1608612
G68: 60 | H68: -0.2510776406 | I68: -0.2421024032 | J68: 0.5017984547 | K68: 0.5014671178 | L68: 200 | M68: 279.1779341 | N68: 334.7660219 | O68: 371.8630598 | P68: 395.9970893 | Q68: 411.4787949 | R68: 421.3294272 | S68: 427.5665977 | T68: 431.5040671 | U68: 433.9851926 | V68: 435.5468463 | W68: 436.5290726
G69: 61 | H69: -0.2497786546 | I69: -0.2367167752 | J69: 0.5262405032 | K69: 0.5133501579 | L69: 200 | M69: 278.3727915 | N69: 332.9259049 | O69: 369.0647032 | P69: 392.4201161 | Q69: 407.3105926 | R69: 416.7299842 | S69: 422.6606926 | T69: 426.3842471 | U69: 428.7179864 | V69: 430.1790845 | W69: 431.0932319
G70: 62 | H70: -0.2405952918 | I70: -0.2281089795 | J70: 0.4945352435 | K70: 0.5567305691 | L70: 200 | M70: 274.1249516 | N70: 323.4086456 | O70: 354.7987095 | P70: 374.3809459 | Q70: 386.4622077 | R70: 393.8692345 | S70: 398.3939897 | T70: 401.1520959 | U70: 402.8311612 | V70: 403.8525418 | W70: 404.4735599
G71: 63 | H71: -0.2451643993 | I71: -0.2634171664 | J71: 0.5224928692 | K71: 0.4415130108 | L71: 200 | M71: 284.0416535 | N71: 346.1338028 | O71: 389.4413104 | P71: 418.7541123 | Q71: 438.2595707 | R71: 451.1078026 | S71: 459.5182272 | T71: 465.0021693 | U71: 468.5690633 | V71: 470.8853867 | W71: 472.388066
G72: 64 | H72: -0.2422289623 | I72: -0.3216934476 | J72: 0.4967867139 | K72: 0.5022612057 | L72: 200 | M72: 269.4674088 | N72: 313.3330571 | O72: 340.0713909 | P72: 356.1037004 | Q72: 365.6349607 | R72: 371.2748777 | S72: 374.6033701 | T72: 376.5647568 | U72: 377.7195294 | V72: 378.3990563 | W72: 378.7988044
G73: 65 | H73: -0.2389261201 | I73: -0.1697710372 | J73: 0.4941977101 | K73: 0.5153342689 | L73: 200 | M73: 286.5881279 | N73: 352.2618967 | O73: 399.1265805 | P73: 431.5044442 | Q73: 453.4607444 | R73: 468.1831054 | S73: 477.9858341 | T73: 484.483844 | U73: 488.7789034 | V73: 491.6125893 | W73: 493.4798683
G74: 66 | H74: -0.2341861198 | I74: -0.2739096751 | J74: 0.510613426 | K74: 0.6009629535 | L74: 200 | M74: 263.5906022 | N74: 301.1359087 | O74: 322.7538437 | P74: 335.0629975 | Q74: 342.0329141 | R74: 345.9679978 | S74: 348.1861395 | T74: 349.4353722 | U74: 350.1385828 | V74: 350.5343218 | W74: 350.7569938
G75: =G74+1 -> 67 | H75: -0.2495621563 | I75: -0.1444172495 | J75: 0.4875688685 | K75: 0.4385998982 | L75: 200 | M75: 300.2698651 | N75: 387.3845223 | O75: 457.529746 | P75: 511.5618723 | Q75: 552.0522744 | R75: 581.859092 | S75: 603.542649 | T75: 619.1904516 | U75: 630.4203666 | V75: 638.4488862 | W75: 644.1733278
G76: 68 | H76: -0.2413861374 | I76: -0.3020334575 | J76: 0.5201105669 | K76: 0.5364730699 | L76: 200 | M76: 267.7666523 | N76: 309.7449746 | O76: 334.9192195 | P76: 349.7927677 | Q76: 358.5134981 | R76: 363.6055341 | S76: 366.5719008 | T76: 368.2976883 | U76: 369.3009691 | V76: 369.8839696 | W76: 370.2226626
G77: 69 | H77: -0.2466559099 | I77: -0.2901086498 | J77: 0.501356902 | K77: 0.5453649478 | L77: 200 | M77: 268.1197135 | N77: 310.4858807 | O77: 335.9791355 | P77: 351.0875379 | Q77: 359.9716154 | R77: 365.1734805 | S77: 368.2120682 | T77: 369.984607 | U77: 371.0177998 | V77: 371.6197651 | W77: 371.9703944
G78: 70 | H78: -0.2408576776 | I78: -0.2482111847 | J78: 0.4979205585 | K78: 0.4434079672 | L78: 200 | M78: 285.7475715 | N78: 350.2254588 | O78: 395.8916819 | P78: 427.229112 | Q78: 448.3480068 | R78: 462.4262039 | S78: 471.7477311 | T78: 477.8934242 | U78: 481.9342194 | V78: 484.5863615 | W78: 486.3250839
G79: 71 | H79: -0.2557087946 | I79: -0.1780834962 | J79: 0.5243069269 | K79: 0.6168638252 | L79: 200 | M79: 272.9092655 | N79: 320.7430225 | O79: 350.8650073 | P79: 369.4646501 | Q79: 380.8305222 | R79: 387.7356031 | S79: 391.9165385 | T79: 394.4430417 | U79: 395.9679965 | V79: 396.8877892 | W79: 397.4423394
G80: 72 | H80: -0.2400367477 | I80: -0.1539043499 | J80: 0.5086348358 | K80: 0.5662122788 | L80: 200 | M80: 282.1145098 | N80: 341.5773238 | O80: 382.335222 | P80: 409.494756 | Q80: 427.308545 | R80: 438.8838065 | S80: 446.3626576 | T80: 451.1777794 | U80: 454.2710573 | V80: 456.2554314 | W80: 457.5273017
G81: 73 | H81: -0.2534412101 | I81: -0.2258175481 | J81: 0.4954189363 | K81: 0.4911869243 | L81: 200 | M81: 282.507788 | N81: 342.5015599 | O81: 383.7700769 | P81: 411.3578721 | Q81: 429.5060624 | R81: 441.3315532 | S81: 448.9925631 | T81: 453.9378067 | U81: 457.1227772 | V81: 459.1711078 | W81: 460.4872362
G82: 74 | H82: -0.2686079037 | I82: -0.2642726775 | J82: 0.4916946109 | K82: 0.4556647881 | L82: 200 | M82: 282.1371273 | N82: 341.6303992 | O82: 382.4175303 | P82: 409.6015416 | Q82: 427.4344154 | R82: 439.0239387 | S82: 446.513159 | T82: 451.3356789 | U82: 454.4341639 | V82: 456.4221658 | W82: 457.6965438
G83: 75 | H83: -0.2489370047 | I83: -0.1967514679 | J83: 0.4814670601 | K83: 0.3676285657 | L83: 200 | M83: 302.8737868 | N83: 394.5108662 | O83: 469.993933 | P83: 529.3496932 | Q83: 574.6793586 | R83: 608.6407796 | S83: 633.7590721 | T83: 652.1732778 | U83: 665.5899716 | V83: 675.323369 | W83: 682.3631677
G84: 76 | H84: -0.2613915879 | I84: -0.1986954564 | J84: 0.5110336041 | K84: 0.5438523641 | L84: 200 | M84: 279.3048709 | N84: 335.0571976 | O84: 372.3070612 | P84: 396.5657882 | Q84: 412.1425298 | R84: 422.0627154 | S84: 428.3494719 | T84: 432.3216591 | U84: 434.8267766 | V84: 436.404847 | W84: 437.3982205
G85: 77 | H85: -0.2551552583 | I85: -0.3181507688 | J85: 0.5015727956 | K85: 0.6046425767 | L85: 200 | M85: 258.2460134 | N85: 290.5228084 | O85: 308.1354391 | P85: 317.6835672 | Q85: 322.8435759 | R85: 325.6277192 | S85: 327.1286891 | T85: 327.9375266 | U85: 328.3732879 | V85: 328.6080247 | W85: 328.7344647
G86: 78 | H86: -0.2503006287 | I86: -0.28859594 | J86: 0.4873481145 | K86: 0.3798206226 | L86: 200 | M86: 288.759066 | N86: 357.5844645 | O86: 407.65885 | P86: 442.861177 | Q86: 467.1179943 | R86: 483.6292489 | S86: 494.7818666 | T86: 502.2777454 | U86: 507.2996656 | V86: 510.6570454 | W86: 512.8984859
G87: 79 | H87: -0.2454065317 | I87: -0.2806734174 | J87: 0.499511264 | K87: 0.4700856885 | L87: 200 | M87: 278.2872328 | N87: 332.7310499 | O87: 368.7691412 | P87: 392.0430527 | Q87: 406.8718619 | R87: 416.2464202 | S87: 422.1453659 | T87: 425.8468155 | U87: 428.1653687 | V87: 429.6161357 | W87: 430.5233085
G88: 80 | H88: -0.2454084955 | I88: -0.2885786007 | J88: 0.4980605321 | K88: 0.5851159817 | L88: 200 | M88: 263.7242382 | N88: 301.4070429 | O88: 323.1327674 | P88: 335.5181484 | Q88: 342.5391969 | R88: 346.507508 | S88: 348.7467913 | T88: 350.0092748 | U88: 350.7206964 | V88: 351.121478 | W88: 351.3472244
G89: 81 | H89: -0.2518215762 | I89: -0.3158655164 | J89: 0.4968703617 | K89: 0.4653661173 | L89: 200 | M89: 274.5609511 | N89: 324.370894 | O89: 356.2253531 | P89: 376.1701332 | Q89: 388.5171057 | R89: 396.1117132 | S89: 400.765709 | T89: 403.6113681 | U89: 405.3490162 | V89: 406.4092265 | W89: 407.0557896
G90: 82 | H90: -0.247877389 | I90: -0.2340917277 | J90: 0.5059259532 | K90: 0.553070209 | L90: 200 | M90: 273.8448783 | N90: 322.7922666 | O90: 353.8867086 | P90: 373.2389084 | Q90: 385.1520612 | R90: 392.4407269 | S90: 396.8841404 | T90: 399.5872785 | U90: 401.2296528 | V90: 402.2267723 | W90: 402.8318678
G91: 83 | H91: -0.2509118093 | I91: -0.1196410528 | J91: 0.5025938405 | K91: 0.4964169063 | L91: 200 | M91: 295.7353785 | N91: 375.3202476 | O91: 436.9062017 | P91: 482.6715962 | Q91: 515.8557438 | R91: 539.5461362 | S91: 556.2883617 | T91: 568.0408678 | U91: 576.2534602 | V91: 581.9747552 | W91: 585.9521274
G92: 84 | H92: -0.2422697669 | I92: -0.280876733 | J92: 0.4838935197 | K92: 0.4815835581 | L92: 200 | M92: 276.8470569 | N92: 329.470782 | O92: 363.845512 | P92: 385.78243 | Q92: 399.6056823 | R92: 408.2532097 | S92: 413.6397615 | T92: 416.986402 | U92: 419.0623941 | V92: 420.3489393 | W92: 421.1457733
G93: 85 | H93: -0.2412980723 | I93: -0.3553137967 | J93: 0.494894074 | K93: 0.5996173251 | L93: 200 | M93: 254.7598654 | N93: 283.8369794 | O93: 299.1394952 | P93: 307.1632674 | Q93: 311.3632664 | R93: 313.5598696 | S93: 314.7082005 | T93: 315.308387 | U93: 315.6220443 | V93: 315.7859518 | W93: 315.871602
G94: 86 | H94: -0.2438549943 | I94: -0.2472296059 | J94: 0.5178540222 | K94: 0.5358790556 | L94: 200 | M94: 274.3339851 | N94: 323.8695688 | O94: 355.4816411 | P94: 375.237016 | Q94: 387.4450557 | R94: 394.9415063 | S94: 399.5278235 | T94: 402.3276016 | U94: 404.0345286 | V94: 405.0743623 | W94: 405.707511
G95: 87 | H95: -0.2208136707 | I95: -0.2004260924 | J95: 0.5002473608 | K95: 0.4561625384 | L95: 200 | M95: 290.3129679 | N95: 361.4506748 | O95: 413.9270008 | P95: 451.278365 | Q95: 477.3112086 | R95: 495.2218134 | S95: 507.4433625 | T95: 515.7386225 | U95: 521.3493403 | V95: 525.1355582 | W95: 527.6866588
G96: 88 | H96: -0.2465603276 | I96: -0.2794605818 | J96: 0.5076015936 | K96: 0.5560810728 | L96: 200 | M96: 268.1117829 | N96: 310.4692156 | O96: 335.9552723 | P96: 351.058367 | Q96: 359.9387475 | R96: 365.1381236 | S96: 368.1750724 | T96: 369.9465489 | U96: 370.9790613 | V96: 371.5805946 | W96: 371.9309517
G97: 89 | H97: -0.2503693731 | I97: -0.3010509231 | J97: 0.5104374055 | K97: 0.5373503246 | L97: 200 | M97: 267.7788954 | N97: 309.7706326 | O97: 334.9558906 | P97: 349.8375337 | Q97: 358.5638864 | R97: 363.6596975 | S97: 366.6285435 | T97: 368.3559339 | U97: 369.3602389 | V97: 369.943888 | W97: 370.2829888
G98: 90 | H98: -0.2509087538 | I98: -0.2767262933 | J98: 0.4893317172 | K98: 0.4507089016 | L98: 200 | M98: 281.1930106 | N98: 339.4229236 | O98: 379.0034591 | P98: 405.1813065 | Q98: 422.2325065 | R98: 433.239814 | S98: 440.3070387 | T98: 444.8293657 | U98: 447.7171671 | V98: 449.5587963 | W98: 450.7322797
G99: 91 | H99: -0.2580546252 | I99: -0.1919849023 | J99: 0.4994815903 | K99: 0.5793077617 | L99: 200 | M99: 275.7676828 | N99: 327.0514439 | O99: 360.21819 | P99: 381.1951267 | Q99: 394.3036093 | R99: 402.4391238 | S99: 407.4679816 | T99: 410.5690312 | U99: 412.4785181 | V99: 413.6532553 | W99: 414.3755764
G100: 92 | H100: -0.2432680064 | I100: -0.2661781261 | J100: 0.5073883109 | K100: 0.3384586349 | L100: 200 | M100: 297.2910814 | N100: 379.4105618 | O100: 443.8317098 | P100: 492.2977411 | Q100: 527.8396952 | R100: 553.4821417 | S100: 571.7852903 | T100: 584.7564644 | U100: 593.9043887 | V100: 600.3345605 | W100: 604.8440718
G101: 93 | H101: -0.2533810928 | I101: -0.3642301072 | J101: 0.5132098511 | K101: 0.5188663959 | L101: 200 | M101: 262.6607304 | N101: 299.2571676 | O101: 320.1357093 | P101: 331.9246008 | Q101: 338.5471195 | R101: 342.2574209 | S101: 344.3331336 | T101: 345.4934631 | U101: 346.1418068 | V101: 346.5039863 | W101: 346.7062805
G102: 94 | H102: -0.2455193061 | I102: -0.2299238929 | J102: 0.5116386368 | K102: 0.4496729349 | L102: 200 | M102: 287.301918 | N102: 354.0018599 | O102: 401.9034785 | P102: 435.1878179 | Q102: 457.8781614 | R102: 473.1683065 | S102: 483.3973708 | T102: 490.209059 | U102: 494.7315701 | V102: 497.7284061 | W102: 499.7117415
G103: 95 | H103: -0.2418432595 | I103: -0.3311999805 | J103: 0.4961588277 | K103: 0.538055402 | L103: 200 | M103: 264.2287966 | N103: 302.4333173 | O103: 324.5695129 | P103: 337.2460544 | Q103: 344.4629448 | R103: 348.558851 | S103: 350.8795243 | T103: 352.1931459 | U103: 352.9363337 | V103: 353.3566718 | W103: 353.5943706
G104: 96 | H104: -0.2487457258 | I104: -0.1678100307 | J104: 0.5100283535 | K104: 0.4949050602 | L104: 200 | M104: 289.5065101 | N104: 359.4382288 | O104: 410.656869 | P104: 446.8792448 | Q104: 471.9763617 | R104: 489.1477738 | S104: 500.8033073 | T104: 508.6743182 | U104: 513.971866 | V104: 517.5295105 | W104: 519.9152186
G105: 97 | H105: -0.2505201795 | I105: -0.1378667531 | J105: 0.4946580335 | K105: 0.52257591 | L105: 200 | M105: 289.8052421 | N105: 360.1821935 | O105: 411.8638972 | P105: 448.5010038 | Q105: 473.9411693 | R105: 491.3830866 | S105: 503.2454028 | T105: 511.2711575 | U105: 516.6827582 | V105: 520.3235223 | W105: 522.7692867
G106: 98 | H106: -0.2398628975 | I106: -0.2266156558 | J106: 0.5030225509 | K106: 0.5094368962 | L106: 200 | M106: 280.1139531 | N106: 336.9199873 | O106: 375.1552955 | P106: 400.2214888 | Q106: 416.4159212 | R106: 426.7897191 | S106: 433.400909 | T106: 437.6009556 | U106: 440.264014 | V106: 441.9504806 | W106: 443.0176729
G107: 99 | H107: -0.2518695514 | I107: -0.2354410958 | J107: 0.4976341522 | K107: 0.5773202154 | L107: 200 | M107: 270.7873582 | N107: 316.1510561 | O107: 344.1517482 | P107: 361.1323776 | Q107: 371.3352707 | R107: 377.4344859 | S107: 381.0699576 | T107: 383.2332505 | U107: 384.5192515 | V107: 385.2832897 | W107: 385.7370638
G108: 100 | H108: -0.2400260522 | I108: -0.2564735335 | J108: 0.4980366663 | K108: 0.4348115672 | L108: 200 | M108: 285.7905857 | N108: 350.3293426 | O108: 396.0563071 | P108: 427.446281 | Q108: 448.6073335 | R108: 462.7178672 | S108: 472.0634861 | T108: 478.2267734 | U108: 482.2802349 | V108: 484.941399 | W108: 486.6864951

Sheet forecast-scenarios
G1: grid
G2: =min -> 200 | H2: =G2 + width -> 251.0896384 | I2: =H2 + width -> 302.1792768 | J2: =I2 + width -> 353.2689152 | K2: =J2 + width -> 404.3585536 | L2: =K2 + width -> 455.4481919 | M2: =L2 + width -> 506.5378303 | N2: =M2 + width -> 557.6274687 | O2: =N2 + width -> 608.7171071 | P2: =O2 + width -> 659.8067455 | Q2: =P2 + width -> 710.8963839
G3: midpoints
B4: max | C4: =MAX( 'synthetic-data'!$L$9:$W$108 ) -> 710.8963839 | F4: ='synthetic-data'!E8 -> Price Scenarios | G4: =(G2+H2)/2 -> 225.5448192 | H4: =(H2+I2)/2 -> 276.6344576 | I4: =(I2+J2)/2 -> 327.724096 | J4: =(J2+K2)/2 -> 378.8137344 | K4: =(K2+L2)/2 -> 429.9033727 | L4: =(L2+M2)/2 -> 480.9930111 | M4: =(M2+N2)/2 -> 532.0826495 | N4: =(N2+O2)/2 -> 583.1722879 | O4: =(O2+P2)/2 -> 634.2619263 | P4: =(P2+Q2)/2 -> 685.3515647 | Q4: max prob
B5: min | C5: =MIN( 'synthetic-data'!$L$9:$W$108 ) -> 200 | E5: =TRANSPOSE( 'synthetic-data'!L8:W8 ) -> Price_1 | F5: ='synthetic-data'!E9 -> 200 | G5: =COUNTIFS( INDIRECT($E5), ">="&G$2, INDIRECT($E5), "<"&H$2 ) / 100 -> 1 | H5: =COUNTIFS( INDIRECT($E5), ">="&H$2, INDIRECT($E5), "<"&I$2 ) / 100 -> 0 | I5: 0 | J5: 0 | K5: 0 | L5: 0 | M5: 0 | N5: 0 | O5: 0 | P5: 0 | Q5: =INDEX( G$4:P$4, , MATCH( MAX(G5:P5), G5:P5, 0)) -> 225.5448192
B6: grid | C6: 10 | E6: Price_2 | F6: ='synthetic-data'!E10 -> 279.9107636 | G6: =COUNTIFS( INDIRECT($E6), ">="&G$2, INDIRECT($E6), "<"&H$2 ) / 100 -> 0 | H6: 0.98 | I6: 0.02 | J6: 0 | K6: 0 | L6: 0 | M6: 0 | N6: 0 | O6: 0 | P6: 0 | Q6: =INDEX( G$4:P$4, , MATCH( MAX(G6:P6), G6:P6, 0)) -> 276.6344576
B7: width | C7: =( C4 - C5 ) / C6 -> 51.08963839 | E7: Price_3 | F7: ='synthetic-data'!E11 -> 352.2618967 | G7: =COUNTIFS( INDIRECT($E7), ">="&G$2, INDIRECT($E7), "<"&H$2 ) / 100 -> 0 | H7: 0.06 | I7: 0.74 | J7: 0.2 | K7: 0 | L7: 0 | M7: 0 | N7: 0 | O7: 0 | P7: 0 | Q7: =INDEX( G$4:P$4, , MATCH( MAX(G7:P7), G7:P7, 0)) -> 327.724096
E8: Price_4 | F8: ='synthetic-data'!E12 -> 478.8251287 | G8: =COUNTIFS( INDIRECT($E8), ">="&G$2, INDIRECT($E8), "<"&H$2 ) / 100 -> 0 | H8: 0.01 | I8: 0.31 | J8: 0.5 | K8: 0.14 | L8: 0.04 | M8: 0 | N8: 0 | O8: 0 | P8: 0 | Q8: =INDEX( G$4:P$4, , MATCH( MAX(G8:P8), G8:P8, 0)) -> 378.8137344
E9: Price_5 | F9: ='synthetic-data'!E13 -> 336.7027128 | G9: =COUNTIFS( INDIRECT($E9), ">="&G$2, INDIRECT($E9), "<"&H$2 ) / 100 -> 0 | H9: 0 | I9: 0.17 | J9: 0.43 | K9: 0.32 | L9: 0.04 | M9: 0.04 | N9: 0 | O9: 0 | P9: 0 | Q9: =INDEX( G$4:P$4, , MATCH( MAX(G9:P9), G9:P9, 0)) -> 378.8137344
E10: Price_6 | F10: ='synthetic-data'!E14 -> 453.4607444 | G10: =COUNTIFS( INDIRECT($E10), ">="&G$2, INDIRECT($E10), "<"&H$2 ) / 100 -> 0 | H10: 0 | I10: 0.08 | J10: 0.37 | K10: 0.35 | L10: 0.13 | M10: 0.04 | N10: 0.03 | O10: 0 | P10: 0 | Q10: =INDEX( G$4:P$4, , MATCH( MAX(G10:P10), G10:P10, 0)) -> 378.8137344
E11: Price_7 | F11: ='synthetic-data'!E15 -> 553.4821417 | G11: =COUNTIFS( INDIRECT($E11), ">="&G$2, INDIRECT($E11), "<"&H$2 ) / 100 -> 0 | H11: 0 | I11: 0.07 | J11: 0.33 | K11: 0.33 | L11: 0.19 | M11: 0.04 | N11: 0.03 | O11: 0.01 | P11: 0 | Q11: =INDEX( G$4:P$4, , MATCH( MAX(G11:P11), G11:P11, 0)) -> 378.8137344
E12: Price_8 | F12: ='synthetic-data'!E16 -> 502.5815783 | G12: =COUNTIFS( INDIRECT($E12), ">="&G$2, INDIRECT($E12), "<"&H$2 ) / 100 -> 0 | H12: 0 | I12: 0.07 | J12: 0.32 | K12: 0.32 | L12: 0.19 | M12: 0.05 | N12: 0.02 | O12: 0.03 | P12: 0 | Q12: =INDEX( G$4:P$4, , MATCH( MAX(G12:P12), G12:P12, 0)) -> 378.8137344
E13: Price_9 | F13: ='synthetic-data'!E17 -> 521.7446676 | G13: =COUNTIFS( INDIRECT($E13), ">="&G$2, INDIRECT($E13), "<"&H$2 ) / 100 -> 0 | H13: 0 | I13: 0.07 | J13: 0.32 | K13: 0.29 | L13: 0.16 | M13: 0.09 | N13: 0.03 | O13: 0.03 | P13: 0.01 | Q13: =INDEX( G$4:P$4, , MATCH( MAX(G13:P13), G13:P13, 0)) -> 378.8137344
E14: Price_10 | F14: ='synthetic-data'!E18 -> 516.4642432 | G14: =COUNTIFS( INDIRECT($E14), ">="&G$2, INDIRECT($E14), "<"&H$2 ) / 100 -> 0 | H14: 0 | I14: 0.07 | J14: 0.3 | K14: 0.3 | L14: 0.16 | M14: 0.1 | N14: 0.03 | O14: 0.02 | P14: 0.02 | Q14: =INDEX( G$4:P$4, , MATCH( MAX(G14:P14), G14:P14, 0)) -> 378.8137344
E15: Price_11 | F15: ='synthetic-data'!E19 -> 433.5094607 | G15: =COUNTIFS( INDIRECT($E15), ">="&G$2, INDIRECT($E15), "<"&H$2 ) / 100 -> 0 | H15: 0 | I15: 0.06 | J15: 0.29 | K15: 0.28 | L15: 0.2 | M15: 0.1 | N15: 0.03 | O15: 0.01 | P15: 0.03 | Q15: =INDEX( G$4:P$4, , MATCH( MAX(G15:P15), G15:P15, 0)) -> 378.8137344
E16: Price_12 | F16: ='synthetic-data'!E20 -> 585.9521274 | G16: =COUNTIFS( INDIRECT($E16), ">="&G$2, INDIRECT($E16), "<"&H$2 ) / 100 -> 0 | H16: 0 | I16: 0.06 | J16: 0.28 | K16: 0.28 | L16: 0.2 | M16: 0.11 | N16: 0.03 | O16: 0.01 | P16: 0.02 | Q16: =INDEX( G$4:P$4, , MATCH( MAX(G16:P16), G16:P16, 0)) -> 378.8137344

Sheet adjust-1
B2: run | C2: mean_demand_elasticity | D2: Demand elasticity | E2: mean_supply_elasticity | F2: Supply elasticity | G2: Price_1 | H2: Price_2 | I2: Price_3 | J2: Price_4 | K2: Price_5 | L2: Price_6 | M2: Price_7 | N2: Price_8 | O2: Price_9 | P2: Price_10 | Q2: Price_11 | R2: Price_12
B3: 1 | C3: -0.2605801335 | D3: -0.3074021163 | E3: 0.5029367178 | F3: 0.3842146959 | G3: 300 | H3: 420.9760882 | I3: 467.3387046 | J3: 482.6412405 | K3: 487.4606186 | L3: 488.95652 | M3: 489.4187563 | N3: 489.5613903 | O3: 489.6053847 | P3: 489.6189526 | Q3: 489.6231368 | R3: 489.6244271
B4: 2 | C4: -0.2476697448 | D4: -0.1010334595 | E4: 0.4943648911 | F4: 0.5554015269 | G4: 300 | H4: 437.5658552 | I4: 498.1513916 | J4: 520.8470584 | K4: 528.8808106 | L4: 531.6694308 | M4: 532.6308928 | N4: 532.9616186 | O4: 533.0752918 | P4: 533.1143516 | Q4: 533.1277718 | R4: 533.1323826
B5: 3 | C5: -0.2427353282 | D5: -0.1199600444 | E5: 0.4983344295 | F5: 0.6707411245 | G5: 300 | H5: 377.5566949 | I5: 396.1712444 | J5: 400.1819141 | K5: 401.0264673 | L5: 401.2034567 | M5: 401.2405103 | N5: 401.248266 | O5: 401.2498893 | P5: 401.250229 | Q5: 401.2503001 | R5: 401.250315
B6: 4 | C6: -0.2308477166 | D6: -0.1738441681 | E6: 0.4951222283 | F6: 0.5063857236 | G6: 300 | H6: 426.2754976 | I6: 476.9550073 | J6: 494.3995314 | K6: 500.1113007 | L6: 501.9516416 | M6: 502.5415555 | N6: 502.7303385 | O6: 502.7907207 | P6: 502.8100306 | Q6: 502.8162055 | R6: 502.8181801
B7: 5 | C7: -0.2279162702 | D7: -0.3356492785 | E7: 0.5001808585 | F7: 0.433136333 | G7: 300 | H7: 386.7573304 | I7: 410.15263 | J7: 415.7603542 | K7: 417.0678158 | L7: 417.3707045 | M7: 417.440768 | N7: 417.4569694 | O7: 417.4607154 | P7: 417.4615816 | Q7: 417.4617819 | R7: 417.4618282
B8: 6 | C8: -0.2482617512 | D8: -0.146245083 | E8: 0.4932607357 | F8: 0.434142722 | G8: 300 | H8: 475.6934283 | I8: 577.2128457 | J8: 626.0184308 | K8: 647.7074979 | L8: 657.0308265 | M8: 660.9828698 | N8: 662.6482673 | O8: 663.3483375 | P8: 663.6423158 | Q8: 663.7657115 | R8: 663.8174966
B9: 7 | C9: -0.2437931536 | D9: -0.1843654133 | E9: 0.5079808202 | F9: 0.420212053 | G9: 300 | H9: 463.2183445 | I9: 550.0319825 | J9: 588.6909115 | K9: 604.7168274 | L9: 611.1735461 | M9: 613.7456574 | N9: 614.765712 | O9: 615.1695322 | P9: 615.3292849 | Q9: 615.3924662 | R9: 615.4174513
B10: 8 | C10: -0.2504795505 | D10: -0.1197617359 | E10: 0.5139441322 | F10: 0.4641122152 | G10: 300 | H10: 473.8750435 | I10: 573.1688473 | J10: 620.38657 | K10: 641.1633985 | L10: 650.0128777 | M10: 653.7312688 | N10: 655.2848486 | O10: 655.9324209 | P10: 656.2020812 | Q10: 656.3143265 | R10: 656.3610403
B11: 9 | C11: -0.255806541 | D11: -0.2438732384 | E11: 0.4835345285 | F11: 0.3949031107 | G11: 300 | H11: 446.1375072 | I11: 514.9021708 | J11: 542.2668521 | K11: 552.5052078 | L11: 556.2508795 | M11: 557.6101388 | N11: 558.1019516 | O11: 558.2797126 | P11: 558.343938 | Q11: 558.3671396 | R11: 558.3755207
B12: 10 | C12: -0.2316376672 | D12: -0.2028426588 | E12: 0.5022910355 | F12: 0.4565745772 | G12: 300 | H12: 436.1345883 | I12: 495.4102444 | J12: 517.3856147 | K12: 525.090449 | L12: 527.7406914 | M12: 528.6463686 | N12: 528.9551813 | O12: 529.0603988 | P12: 529.0962388 | Q12: 529.1084458 | R12: 529.1126034
B13: 11 | C13: -0.2350632004 | D13: -0.2677299229 | E13: 0.5085358473 | F13: 0.5477306977 | G13: 300 | H13: 367.4251795 | I13: 381.4320443 | J13: 384.0746288 | K13: 384.564287 | L13: 384.6547164 | M13: 384.6714065 | N13: 384.6744866 | O13: 384.675055 | P13: 384.6751599 | Q13: 384.6751792 | R13: 384.6751828
B14: 12 | C14: -0.2545478314 | D14: -0.2989901737 | E14: 0.4835929823 | F14: 0.4996394004 | G14: 300 | H14: 374.282365 | I14: 391.3331646 | J14: 394.8595325 | K14: 395.5734732 | L14: 395.7173958 | M14: 395.7463839 | N14: 395.7522215 | O14: 395.753397 | P14: 395.7536338 | Q14: 395.7536814 | R14: 395.753691
B15: 13 | C15: -0.2536178009 | D15: -0.2473256389 | E15: 0.4899308414 | F15: 0.4330882768 | G15: 300 | H15: 426.1893257 | I15: 476.7969561 | J15: 494.2050667 | K15: 499.9013822 | L15: 501.7356538 | M15: 502.3232795 | N15: 502.5112216 | O15: 502.5713001 | P15: 502.5905019 | Q15: 502.5966386 | R15: 502.5985999
B16: 14 | C16: -0.2324549717 | D16: -0.39507212 | E16: 0.4987719629 | F16: 0.4106416918 | G16: 300 | H16: 371.380695 | I16: 387.1054442 | J16: 390.2369285 | K16: 390.8482652 | L16: 390.9671506 | M16: 390.9902525 | N16: 390.9947411 | O16: 390.9956132 | P16: 390.9957826 | Q16: 390.9958155 | R16: 390.9958219
B17: 15 | C17: -0.2378877547 | D17: -0.2972015667 | E17: 0.4837013028 | F17: 0.6019032707 | G17: 300 | H17: 335.1664051 | I17: 338.9358412 | J17: 339.3185056 | K17: 339.3571386 | L17: 339.3610367 | M17: 339.36143 | N17: 339.3614697 | O17: 339.3614737 | P17: 339.3614741 | Q17: 339.3614741 | R17: 339.3614742
B18: 16 | C18: -0.2438521302 | D18: -0.2772986304 | E18: 0.5018871304 | F18: 0.4397679175 | G18: 300 | H18: 409.368874 | I18: 447.0015338 | J18: 458.2636699 | K18: 461.5012963 | L18: 462.4214735 | M18: 462.6821552 | N18: 462.7559375 | O18: 462.7768151 | P18: 462.7827222 | Q18: 462.7843936 | R18: 462.7848664
B19: 17 | C19: -0.2247225317 | D19: -0.2764562281 | E19: 0.5071188062 | F19: 0.4808695078 | G19: 300 | H19: 391.6573707 | I19: 417.8345573 | J19: 424.4465714 | K19: 426.0668511 | L19: 426.460983 | M19: 426.5566836 | N19: 426.5799109 | O19: 426.5855478 | P19: 426.5869157 | Q19: 426.5872477 | R19: 426.5873282
B20: 18 | C20: -0.2439574777 | D20: -0.3231846486 | E20: 0.4854307402 | F20: 0.5883599523 | G20: 300 | H20: 330.6170189 | I20: 333.4712312 | J20: 333.7248848 | K20: 333.7473311 | L20: 333.7493167 | M20: 333.7494923 | N20: 333.7495079 | O20: 333.7495092 | P20: 333.7495094 | Q20: 333.7495094 | R20: 333.7495094
B21: 19 | C21: -0.2399356323 | D21: -0.2303879425 | E21: 0.4937140822 | F21: 0.42602344 | G21: 300 | H21: 437.577202 | I21: 498.1731863 | J21: 520.8746294 | K21: 528.9110319 | L21: 531.700772 | M21: 532.6626875 | N21: 532.9935922 | O21: 533.1073348 | P21: 533.146421 | Q21: 533.1598513 | R21: 533.1644658
B22: 20 | C22: -0.2508930464 | D22: -0.2145283911 | E22: 0.4855159257 | F22: 0.7205085965 | G22: 300 | H22: 322.1932879 | I22: 323.6905589 | J22: 323.7880665 | K22: 323.7944019 | L22: 323.7948134 | M22: 323.7948402 | N22: 323.7948419 | O22: 323.794842 | P22: 323.794842 | Q22: 323.794842 | R22: 323.794842
B23: 21 | C23: -0.2382569617 | D23: -0.2492128513 | E23: 0.4952668206 | F23: 0.6666335601 | G23: 300 | H23: 329.0582021 | I23: 331.6283197 | J23: 331.8455179 | K23: 331.8638024 | L23: 331.8653412 | M23: 331.8654706 | N23: 331.8654815 | O23: 331.8654825 | P23: 331.8654825 | Q23: 331.8654825 | R23: 331.8654825
B24: 22 | C24: -0.2491103139 | D24: -0.2663691802 | E24: 0.4866407063 | F24: 0.5030372174 | G24: 300 | H24: 386.4936506 | I24: 409.7439289 | J24: 415.3007591 | K24: 416.592784 | L24: 416.8912865 | M24: 416.9601496 | N24: 416.9760306 | O24: 416.9796928 | P24: 416.9805373 | Q24: 416.980732 | R24: 416.9807769
B25: 23 | C25: -0.2671320739 | D25: -0.2749246184 | E25: 0.5019229948 | F25: 0.4852860752 | G25: 300 | H25: 390.4179974 | I25: 415.8759273 | J25: 422.2232562 | K25: 423.7596226 | L25: 424.1288571 | M25: 424.2174434 | N25: 424.2386881 | O25: 424.2437826 | P25: 424.2450042 | Q25: 424.2452971 | R25: 424.2453673
B26: 24 | C26: -0.2453982213 | D26: -0.1887295751 | E26: 0.5090895291 | F26: 0.4465511871 | G26: 300 | H26: 447.8541007 | I26: 518.3263444 | J26: 546.7021973 | K26: 557.4336366 | L26: 561.3998076 | M26: 562.8533589 | N26: 563.3844331 | O26: 563.5782508 | P26: 563.6489564 | Q26: 563.6747463 | R26: 563.6841527
B27: 25 | C27: -0.2638236175 | D27: -0.1478708734 | E27: 0.4930625332 | F27: 0.4941360002 | G27: 300 | H27: 444.5569297 | I27: 511.7699774 | J27: 538.2266043 | K27: 548.0267505 | L27: 551.578343 | M27: 552.8553758 | N27: 553.3132631 | O27: 553.4772758 | P27: 553.536003 | Q27: 553.5570285 | R27: 553.5645556
B28: 26 | C28: -0.2639160209 | D28: -0.2692485979 | E28: 0.5161201412 | F28: 0.4142886569 | G28: 300 | H28: 424.7294319 | I28: 474.1277945 | J28: 490.9270625 | K28: 496.3664086 | L28: 498.1002813 | M28: 498.6502481 | N28: 498.8244185 | O28: 498.8795496 | P28: 498.8969979 | Q28: 498.9025197 | R28: 498.9042672
B29: 27 | C29: -0.2303787855 | D29: -0.2083697698 | E29: 0.5015288079 | F29: 0.4113666055 | G29: 300 | H29: 455.5678968 | I29: 534.0046616 | J29: 567.2574023 | K29: 580.4387993 | L29: 585.5312049 | M29: 587.4793652 | N29: 588.2218796 | O29: 588.504477 | P29: 588.6119742 | Q29: 588.6528566 | R29: 588.6684034
B30: 28 | C30: -0.2375008359 | D30: -0.274298038 | E30: 0.5026569873 | F30: 0.4272057188 | G30: 300 | H30: 416.4282241 | I30: 459.2526427 | J30: 472.8693761 | K30: 477.0116269 | L30: 478.2550908 | M30: 478.626888 | N30: 478.737924 | O30: 478.7710729 | P30: 478.7809681 | Q30: 478.7839218 | R30: 478.7848035
B31: 29 | C31: -0.2477478628 | D31: -0.1923639536 | E31: 0.4868010128 | F31: 0.412152417 | G31: 300 | H31: 463.249437 | I31: 550.0981038 | J31: 588.7802203 | K31: 604.8186094 | L31: 611.2814319 | M31: 613.856388 | N31: 614.8777316 | O31: 615.282125 | P31: 615.4421294 | Q31: 615.5054199 | R31: 615.5304521
B32: 30 | C32: -0.2533130767 | D32: -0.3045409845 | E32: 0.4944788111 | F32: 0.3916465587 | G32: 300 | H32: 418.8674717 | I32: 463.5706008 | J32: 478.0744768 | K32: 482.5701668 | L32: 483.9443684 | M32: 484.3626425 | N32: 484.489791 | O32: 484.5284269 | P32: 484.5401655 | Q32: 484.543732 | R32: 484.5448155
B33: 31 | C33: -0.2545766247 | D33: -0.3501585153 | E33: 0.499337758 | F33: 0.5242774849 | G33: 300 | H33: 344.3741211 | I33: 350.3910087 | J33: 351.1539044 | K33: 351.249814 | L33: 351.2618586 | M33: 351.263371 | N33: 351.2635609 | O33: 351.2635847 | P33: 351.2635877 | Q33: 351.2635881 | R33: 351.2635882
B34: 32 | C34: -0.2506519529 | D34: -0.2615978395 | E34: 0.5174679507 | F34: 0.3478284692 | G34: 300 | H34: 460.7573421 | I34: 544.8237938 | J34: 581.6791596 | K34: 596.7418737 | L34: 602.730345 | M34: 605.0855709 | N34: 606.0079575 | O34: 606.3685991 | P34: 606.5095145 | Q34: 606.5645612 | R34: 606.5860624
B35: 33 | C35: -0.2478711389 | D35: -0.3521879234 | E35: 0.4761912263 | F35: 0.5744957888 | G35: 300 | H35: 325.163668 | I35: 327.089553 | J35: 327.2311998 | K35: 327.2415872 | L35: 327.2423488 | M35: 327.2424046 | N35: 327.2424087 | O35: 327.242409 | P35: 327.242409 | Q35: 327.242409 | R35: 327.242409
B36: 34 | C36: -0.2494844061 | D36: -0.3960614172 | E36: 0.5056827605 | F36: 0.4862261198 | G36: 300 | H36: 341.4163953 | I36: 346.6534061 | J36: 347.2751283 | K36: 347.3483861 | L36: 347.3570105 | M36: 347.3580257 | N36: 347.3581452 | O36: 347.3581593 | P36: 347.3581609 | Q36: 347.3581611 | R36: 347.3581611
B37: 35 | C37: -0.265637593 | D37: -0.0787596928 | E37: 0.5155209198 | F37: 0.2818752585 | G37: 300 | H37: 605.5861149 | I37: 948.8928907 | J37: 1264.502734 | K37: 1519.32346 | L37: 1708.547748 | M37: 1841.704518 | N37: 1932.229338 | O37: 1992.42609 | P37: 2031.892986 | Q37: 2057.535482 | R37: 2074.099737
B38: 36 | C38: -0.2666724205 | D38: -0.2059226519 | E38: 0.4810140803 | F38: 0.4497592304 | G38: 300 | H38: 437.9280336 | I38: 498.8475473 | J38: 521.7280998 | K38: 529.8467818 | L38: 532.6713311 | M38: 533.6473553 | N38: 533.9838319 | O38: 534.099736 | P38: 534.1396497 | Q38: 534.1533934 | R38: 534.1581257
B39: 37 | C39: -0.2366482179 | D39: -0.2034757092 | E39: 0.4894574868 | F39: 0.4803735745 | G39: 300 | H39: 424.5838601 | I39: 473.8625193 | J39: 490.601907 | K39: 496.0161261 | L39: 497.7402354 | M39: 498.2865596 | N39: 498.4594051 | O39: 498.5140628 | P39: 498.5313442 | Q39: 498.5368078 | R39: 498.5385351
B40: 38 | C40: -0.2388254753 | D40: -0.2451924753 | E40: 0.5130447545 | F40: 0.4959469625 | G40: 300 | H40: 398.6842975 | I40: 429.1414351 | J40: 437.3977681 | K40: 439.5607665 | L40: 440.1224222 | M40: 440.2679296 | N40: 440.3056035 | O40: 440.3153564 | P40: 440.317881 | Q40: 440.3185346 | R40: 440.3187037
B41: 39 | C41: -0.2610614784 | D41: -0.2135657272 | E41: 0.4986633565 | F41: 0.5156642567 | G41: 300 | H41: 403.9349062 | I41: 437.8165739 | J41: 447.4700305 | K41: 450.120322 | L41: 450.8406382 | M41: 451.0358765 | N41: 451.0887557 | O41: 451.1030749 | P41: 451.1069522 | Q41: 451.108002 | R41: 451.1082863
B42: 40 | C42: -0.2544175548 | D42: -0.2741972764 | E42: 0.5022556944 | F42: 0.6544827379 | G42: 300 | H42: 324.4513128 | I42: 326.2694661 | J42: 326.3995254 | K42: 326.4088032 | L42: 326.4094649 | M42: 326.4095121 | N42: 326.4095154 | O42: 326.4095157 | P42: 326.4095157 | Q42: 326.4095157 | R42: 326.4095157
B43: 41 | C43: -0.2703355042 | D43: -0.193377422 | E43: 0.4887623559 | F43: 0.5889952737 | G43: 300 | H43: 381.0271016 | I43: 401.3775836 | J43: 405.9484541 | K43: 406.9500767 | L43: 407.1683844 | M43: 407.2159096 | N43: 407.2262531 | O43: 407.2285042 | P43: 407.2289941 | Q43: 407.2291007 | R43: 407.2291239
B44: 42 | C44: -0.2518282567 | D44: -0.3266589458 | E44: 0.4853150759 | F44: 0.629722365 | G44: 300 | H44: 314.7260263 | I44: 315.3845574 | J44: 315.413313 | K44: 315.4145673 | L44: 315.4146221 | M44: 315.4146244 | N44: 315.4146245 | O44: 315.4146246 | P44: 315.4146246 | Q44: 315.4146246 | R44: 315.4146246
B45: 43 | C45: -0.2581246441 | D45: -0.3383425696 | E45: 0.492281449 | F45: 0.4106660331 | G45: 300 | H45: 395.2524632 | I45: 423.5762887 | J45: 430.998445 | K45: 432.8816717 | L45: 433.3556358 | M45: 433.4746782 | N45: 433.5045619 | O45: 433.5120628 | P45: 433.5139455 | Q45: 433.514418 | R45: 433.5145366
B46: 44 | C46: -0.2575481134 | D46: -0.1950344823 | E46: 0.5122164719 | F46: 0.4113976151 | G46: 300 | H46: 462.2754886 | I46: 548.030708 | J46: 585.9912718 | K46: 601.6425774 | L46: 607.9164543 | M46: 610.4035544 | N46: 611.3851852 | O46: 611.7719563 | P46: 611.9242441 | Q46: 611.9841901 | R46: 612.0077846
B47: 45 | C47: -0.245595257 | D47: -0.3331464635 | E47: 0.4811422127 | F47: 0.3723278145 | G47: 300 | H47: 414.6156938 | I47: 456.0724213 | J47: 469.0548855 | K47: 472.9485397 | L47: 474.1014707 | M47: 474.441574 | N47: 474.5417897 | O47: 474.5713098 | P47: 474.5800046 | Q47: 474.5825655 | R47: 474.5833197
B48: 46 | C48: -0.2454041236 | D48: -0.05989954867 | E48: 0.5057534208 | F48: 0.6743748074 | G48: 300 | H48: 401.7025673 | I48: 434.1044076 | J48: 443.1455401 | K48: 445.579507 | L48: 446.2285195 | M48: 446.4011377 | N48: 446.447018 | O48: 446.4592104 | P48: 446.4624503 | Q48: 446.4633112 | R48: 446.46354
B49: 47 | C49: -0.2454066019 | D49: -0.2442590635 | E49: 0.5058112063 | F49: 0.5804245619 | G49: 300 | H49: 363.7210393 | I49: 376.2124311 | J49: 378.4461635 | K49: 378.8391376 | L49: 378.9080744 | M49: 378.9201614 | N49: 378.9222805 | O49: 378.922652 | P49: 378.9227172 | Q49: 378.9227286 | R49: 378.9227306
B50: 48 | C50: -0.238808779 | D50: -0.2913937436 | E50: 0.4934454543 | F50: 0.6247255706 | G50: 300 | H50: 328.9595605 | I50: 331.512206 | J50: 331.7272219 | K50: 331.7452639 | L50: 331.7467774 | M50: 331.7469043 | N50: 331.746915 | O50: 331.7469159 | P50: 331.7469159 | Q50: 331.7469159 | R50: 331.7469159
B51: 49 | C51: -0.2485138867 | D51: -0.4184957168 | E51: 0.5067924837 | F51: 0.5835752864 | G51: 300 | H51: 299.318207 | I51: 299.3196174 | J51: 299.3196145 | K51: 299.3196145 | L51: 299.3196145 | M51: 299.3196145 | N51: 299.3196145 | O51: 299.3196145 | P51: 299.3196145 | Q51: 299.3196145 | R51: 299.3196145
B52: 50 | C52: -0.2626715037 | D52: -0.3564886062 | E52: 0.503929272 | F52: 0.3524435053 | G52: 300 | H52: 413.043632 | I52: 453.3335797 | J52: 465.7827748 | K52: 469.4701597 | L52: 470.5489137 | M52: 470.8633698 | N52: 470.9549374 | O52: 470.9815931 | P52: 470.989352 | Q52: 470.9916104 | R52: 470.9922677
B53: 51 | C53: -0.2548448902 | D53: -0.2996461507 | E53: 0.4957399574 | F53: 0.6157466997 | G53: 300 | H53: 329.2222086 | I53: 331.8215094 | J53: 332.0423681 | K53: 332.0610611 | L53: 332.0626427 | M53: 332.0627765 | N53: 332.0627879 | O53: 332.0627888 | P53: 332.0627889 | Q53: 332.0627889 | R53: 332.0627889
B54: 52 | C54: -0.2423361436 | D54: -0.4303224891 | E54: 0.5083788361 | F54: 0.5025662281 | G54: 300 | H54: 322.9545995 | I54: 324.5565604 | J54: 324.6643542 | K54: 324.6715896 | L54: 324.6720752 | M54: 324.6721078 | N54: 324.67211 | O54: 324.6721101 | P54: 324.6721101 | Q54: 324.6721101 | R54: 324.6721101
B55: 53 | C55: -0.2389564783 | D55: -0.2423874388 | E55: 0.5031512433 | F55: 0.4793936724 | G55: 300 | H55: 407.2540389 | I55: 443.4016743 | J55: 454.0173911 | K55: 457.0158186 | L55: 457.8535532 | M55: 458.0868997 | N55: 458.1518423 | O55: 458.1699122 | P55: 458.1749397 | Q55: 458.1763385 | R55: 458.1767276
B56: 54 | C56: -0.2618924012 | D56: -0.252486655 | E56: 0.5108064367 | F56: 0.5141766127 | G56: 300 | H56: 387.6601587 | I56: 411.5556115 | J56: 417.3399883 | K56: 418.7013524 | L56: 419.0196471 | M56: 419.0939517 | N56: 419.1112916 | O56: 419.1153377 | P56: 419.1162819 | Q56: 419.1165022 | R56: 419.1165536
B57: 55 | C57: -0.263692829 | D57: -0.2683522158 | E57: 0.5011265989 | F57: 0.4353539049 | G57: 300 | H57: 415.4218756 | I57: 457.4839552 | J57: 470.745939 | K57: 474.7487185 | L57: 475.9412409 | M57: 476.2951529 | N57: 476.4000654 | O57: 476.4311547 | P57: 476.4403667 | Q57: 476.4430962 | R57: 476.4439049
B58: 56 | C58: -0.2547234537 | D58: -0.1425293118 | E58: 0.4972810286 | F58: 0.6547624066 | G58: 300 | H58: 374.832884 | I58: 392.1415902 | J58: 395.7464669 | K58: 396.4812351 | L58: 396.6303449 | M58: 396.6605775 | N58: 396.6667062 | O58: 396.6679486 | P58: 396.6682004 | Q58: 396.6682514 | R58: 396.6682618
B59: 57 | C59: -0.2489956198 | D59: -0.2072700247 | E59: 0.5024993305 | F59: 0.4043614836 | G59: 300 | H59: 459.642435 | I59: 542.4807806 | J59: 578.539478 | K59: 593.1811912 | L59: 598.9669619 | M59: 601.2291572 | N59: 602.1100242 | O59: 602.452473 | P59: 602.5855219 | Q59: 602.6372018 | R59: 602.6572738
B60: 58 | C60: -0.2488928777 | D60: -0.1920673917 | E60: 0.507111255 | F60: 0.3875970684 | G60: 300 | H60: 476.0716005 | I60: 578.0574413 | J60: 627.1981154 | K60: 649.0808684 | L60: 658.5053579 | M60: 662.5075401 | N60: 664.1970519 | O60: 664.9084993 | P60: 665.2077733 | Q60: 665.333609 | R60: 665.3865094
B61: 59 | C61: -0.2636800052 | D61: -0.2825633829 | E61: 0.515844028 | F61: 0.5953281256 | G61: 300 | H61: 343.0692645 | I61: 348.735308 | J61: 349.4335603 | K61: 349.5189186 | L61: 349.529343 | M61: 349.5306159 | N61: 349.5307714 | O61: 349.5307903 | P61: 349.5307927 | Q61: 349.5307929 | R61: 349.530793
B62: 60 | C62: -0.2413549077 | D62: -0.3516447534 | E62: 0.4910392818 | F62: 0.5577834118 | G62: 300 | H62: 331.386645 | I62: 334.3866655 | J62: 334.6597206 | K62: 334.6844627 | L62: 334.6867037 | M62: 334.6869067 | N62: 334.6869251 | O62: 334.6869267 | P62: 334.6869269 | Q62: 334.6869269 | R62: 334.6869269
B63: 61 | C63: -0.2648045973 | D63: -0.1563507141 | E63: 0.4837791549 | F63: 0.4198682738 | G63: 300 | H63: 477.8770598 | I63: 582.1066414 | J63: 632.8704404 | K63: 655.6970905 | L63: 665.6172789 | M63: 669.8664141 | N63: 671.6752902 | O63: 672.4433304 | P63: 672.7690762 | Q63: 672.9071687 | R63: 672.9656982
B64: 62 | C64: -0.2520034739 | D64: -0.2297811061 | E64: 0.514506276 | F64: 0.44589692 | G64: 300 | H64: 428.4125275 | I64: 480.8925381 | J64: 499.2572966 | K64: 505.3627291 | L64: 507.3588454 | M64: 508.0079214 | N64: 508.2186093 | O64: 508.2869588 | P64: 508.309128 | Q64: 508.3163182 | R64: 508.3186502
B65: 63 | C65: -0.2510141513 | D65: -0.1747992678 | E65: 0.4975254771 | F65: 0.4454857947 | G65: 300 | H65: 455.2933658 | I65: 533.4384336 | J65: 566.5079715 | K65: 579.5952712 | L65: 584.6435371 | M65: 586.5719363 | N65: 587.3058434 | O65: 587.5847593 | P65: 587.6907026 | Q65: 587.7309358 | R65: 587.7462137
B66: 64 | C66: -0.2545500095 | D66: -0.3097590281 | E66: 0.5296284778 | F66: 0.4574010562 | G66: 300 | H66: 387.4486281 | I66: 411.226395 | J66: 416.9690488 | K66: 418.317637 | L66: 418.6322677 | M66: 418.7055602 | N66: 418.7226275 | O66: 418.7266015 | P66: 418.7275269 | Q66: 418.7277423 | R66: 418.7277925
B67: 65 | C67: -0.2620635021 | D67: -0.299330431 | E67: 0.4946560125 | F67: 0.4746716525 | G67: 300 | H67: 384.5472095 | I67: 406.7416631 | J67: 411.9324476 | K67: 413.1147012 | L67: 413.3823578 | M67: 413.4428717 | N67: 413.4565489 | O67: 413.45964 | P67: 413.4603386 | Q67: 413.4604965 | R67: 413.4605321
B68: 66 | C68: -0.2401654537 | D68: -0.4134964262 | E68: 0.4943093962 | F68: 0.4189588731 | G68: 300 | H68: 360.6287882 | I68: 371.9236296 | J68: 373.8503238 | K68: 374.174106 | L68: 374.2283814 | M68: 374.2374758 | N68: 374.2389995 | O68: 374.2392548 | P68: 374.2392976 | Q68: 374.2393047 | R68: 374.2393059
B69: 67 | C69: -0.2573080214 | D69: -0.3573429815 | E69: 0.4914497901 | F69: 0.5137132151 | G69: 300 | H69: 345.6551914 | I69: 352.0269741 | J69: 352.8570798 | K69: 352.9642591 | L69: 352.9780816 | M69: 352.979864 | N69: 352.9800938 | O69: 352.9801234 | P69: 352.9801273 | Q69: 352.9801277 | R69: 352.9801278
B70: 68 | C70: -0.2571426586 | D70: -0.2736213592 | E70: 0.4827561989 | F70: 0.4101839987 | G70: 300 | H70: 424.60435 | I70: 473.8998483 | J70: 490.6476553 | K70: 496.0654057 | L70: 497.7908866 | M70: 498.3377223 | N70: 498.5107538 | O70: 498.5654779 | P70: 498.5827827 | Q70: 498.5882544 | R70: 498.5899846
B71: 69 | C71: -0.2442850811 | D71: -0.3013315413 | E71: 0.5126135745 | F71: 0.4737347234 | G71: 300 | H71: 384.0978894 | I71: 406.0522853 | J71: 411.1609568 | K71: 412.3188954 | L71: 412.5798038 | M71: 412.6385137 | N71: 412.6517206 | O71: 412.6546914 | P71: 412.6553596 | Q71: 412.6555099 | R71: 412.6555437
B72: 70 | C72: -0.2328405645 | D72: -0.2490553324 | E72: 0.5008359959 | F72: 0.5799055239 | G72: 300 | H72: 362.0159167 | I72: 373.8398177 | J72: 375.9004987 | K72: 376.2540916 | L72: 376.3146032 | M72: 376.324954 | N72: 376.3267244 | O72: 376.3270272 | P72: 376.327079 | Q72: 376.3270879 | R72: 376.3270894
B73: 71 | C73: -0.260467933 | D73: -0.1642046492 | E73: 0.5029110191 | F73: 0.4893691527 | G73: 300 | H73: 438.9434341 | I73: 500.8047146 | J73: 524.2092999 | K73: 532.5698052 | L73: 535.4970933 | M73: 536.5149305 | N73: 536.867987 | O73: 536.9903492 | P73: 537.0327452 | Q73: 537.0474331 | R73: 537.0525214
B74: 72 | C74: -0.2462706365 | D74: -0.156885175 | E74: 0.4815189801 | F74: 0.5442677441 | G74: 300 | H74: 416.5887608 | I74: 459.5354784 | J74: 473.2094059 | K74: 477.3742437 | L74: 478.6259928 | M74: 479.000711 | N74: 479.1127514 | O74: 479.1462394 | P74: 479.1562477 | Q74: 479.1592386 | R74: 479.1601325
B75: 73 | C75: -0.2691214822 | D75: -0.30582921 | E75: 0.4978359657 | F75: 0.5981885826 | G75: 300 | H75: 333.3622402 | I75: 336.7533507 | J75: 337.0806458 | K75: 337.1120771 | L75: 337.1150941 | M75: 337.1153837 | N75: 337.1154114 | O75: 337.1154141 | P75: 337.1154144 | Q75: 337.1154144 | R75: 337.1154144
B76: 74 | C76: -0.2446256913 | D76: -0.3413923494 | E76: 0.5035423185 | F76: 0.6468982534 | G76: 300 | H76: 303.8841558 | I76: 303.9299335 | J76: 303.9304696 | K76: 303.9304759 | L76: 303.9304759 | M76: 303.9304759 | N76: 303.9304759 | O76: 303.9304759 | P76: 303.9304759 | Q76: 303.9304759 | R76: 303.9304759
B77: 75 | C77: -0.2610845144 | D77: -0.1265276644 | E77: 0.5200092816 | F77: 0.4359440751 | G77: 300 | H77: 485.149164 | I77: 598.7025062 | J77: 656.4067901 | K77: 683.3726042 | L77: 695.5166434 | M77: 700.8976466 | N77: 703.2650608 | O77: 704.3033846 | P77: 704.7581625 | Q77: 704.9572331 | R77: 705.0443497
B78: 76 | C78: -0.2557978243 | D78: -0.4783880528 | E78: 0.5028415493 | F78: 0.5600092858 | G78: 300 | H78: 287.6080704 | I78: 288.0742996 | J78: 288.0563837 | K78: 288.0570716 | L78: 288.0570452 | M78: 288.0570462 | N78: 288.0570462 | O78: 288.0570462 | P78: 288.0570462 | Q78: 288.0570462 | R78: 288.0570462
B79: 77 | C79: -0.2758398876 | D79: -0.3104800605 | E79: 0.4976478952 | F79: 0.7273041208 | G79: 300 | H79: 287.8018748 | I79: 288.2536254 | J79: 288.2365435 | K79: 288.2371889 | L79: 288.2371645 | M79: 288.2371654 | N79: 288.2371654 | O79: 288.2371654 | P79: 288.2371654 | Q79: 288.2371654 | R79: 288.2371654
B80: 78 | C80: -0.2496308389 | D80: -0.3487814778 | E80: 0.4973545738 | F80: 0.4092791868 | G80: 300 | H80: 391.3412735 | I80: 417.3340076 | J80: 423.8778151 | K80: 425.4763742 | L80: 425.8640334 | M80: 425.9578765 | N80: 425.9805839 | O80: 425.9860779 | P80: 425.9874071 | Q80: 425.9877287 | R80: 425.9878065
B81: 79 | C81: -0.2696973009 | D81: -0.2963254323 | E81: 0.5033512885 | F81: 0.452218013 | G81: 300 | H81: 395.4544997 | I81: 423.9016323 | J81: 431.3712261 | K81: 433.2701239 | L81: 433.748928 | M81: 433.8694097 | N81: 433.8997109 | O81: 433.9073306 | P81: 433.9092467 | Q81: 433.9097285 | R81: 433.9098496
B82: 80 | C82: -0.2536022674 | D82: -0.1450918101 | E82: 0.495674588 | F82: 0.3505365882 | G82: 300 | H82: 522.1167983 | I82: 690.466929 | J82: 794.9889538 | K82: 853.5674041 | L82: 884.7308408 | M82: 900.8778715 | N82: 909.1334425 | O82: 913.3259762 | P82: 915.4479006 | Q82: 916.5200086 | R82: 917.0612256
B83: 81 | C83: -0.2625695179 | D83: -0.2177795911 | E83: 0.4951724842 | F83: 0.4612732891 | G83: 300 | H83: 426.8270621 | I83: 477.9679784 | J83: 495.646842 | K83: 501.4582908 | L83: 503.3378644 | M83: 503.9426002 | N83: 504.1368424 | O83: 504.1991998 | P83: 504.2192148 | Q83: 504.2256388 | R83: 504.2277005
B84: 82 | C84: -0.2540579096 | D84: -0.508105087 | E84: 0.5094291592 | F84: 0.5126889385 | G84: 300 | H84: 293.2243169 | I84: 293.3636405 | J84: 293.3607427 | K84: 293.360803 | L84: 293.3608017 | M84: 293.3608017 | N84: 293.3608017 | O84: 293.3608017 | P84: 293.3608017 | Q84: 293.3608017 | R84: 293.3608017
B85: 83 | C85: -0.2420485085 | D85: -0.2372764428 | E85: 0.488786974 | F85: 0.4117537089 | G85: 300 | H85: 441.1399901 | I85: 505.0660146 | J85: 529.633256 | K85: 538.5359963 | L85: 541.6959394 | M85: 542.8093744 | N85: 543.2006988 | O85: 543.3381087 | P85: 543.3863437 | Q85: 543.4032737 | R85: 543.4092158
B86: 84 | C86: -0.2367210164 | D86: -0.3513015663 | E86: 0.4971454634 | F86: 0.6250591518 | G86: 300 | H86: 307.8931725 | I86: 308.0822528 | J86: 308.086724 | K86: 308.0868297 | L86: 308.0868322 | M86: 308.0868322 | N86: 308.0868322 | O86: 308.0868322 | P86: 308.0868322 | Q86: 308.0868322 | R86: 308.0868322
B87: 85 | C87: -0.2599891384 | D87: -0.2259477267 | E87: 0.49577651 | F87: 0.5189047657 | G87: 300 | H87: 397.0612941 | I87: 426.4992452 | J87: 434.3535051 | K87: 436.3805554 | L87: 436.8992652 | M87: 437.0317115 | N87: 437.0655112 | O87: 437.0741356 | P87: 437.0763361 | Q87: 437.0768975 | R87: 437.0770408
B88: 86 | C88: -0.2610782661 | D88: -0.4661474333 | E88: 0.5212223229 | F88: 0.6222704425 | G88: 300 | H88: 272.2295134 | I88: 274.5776651 | J88: 274.3692328 | K88: 274.3876556 | L88: 274.3860266 | M88: 274.3861706 | N88: 274.3861579 | O88: 274.386159 | P88: 274.3861589 | Q88: 274.3861589 | R88: 274.3861589
B89: 87 | C89: -0.2576292941 | D89: -0.2234156439 | E89: 0.4977594888 | F89: 0.5878597947 | G89: 300 | H89: 369.1184506 | I89: 383.8480714 | J89: 386.6931458 | K89: 387.2324419 | L89: 387.3343047 | M89: 387.3535317 | N89: 387.3571604 | O89: 387.3578453 | P89: 387.3579745 | Q89: 387.3579989 | R89: 387.3580035
B90: 88 | C90: -0.2205268684 | D90: -0.08598010667 | E90: 0.5267161236 | F90: 0.5421431147 | G90: 300 | H90: 451.389622 | I90: 525.4528887 | J90: 555.9951935 | K90: 567.8006323 | L90: 572.2544598 | M90: 573.9196318 | N90: 574.5401058 | O90: 574.7710168 | P90: 574.8569109 | Q90: 574.8888562 | R90: 574.9007363
B91: 89 | C91: -0.2448408367 | D91: -0.1752616628 | E91: 0.5006708449 | F91: 0.6490329828 | G91: 300 | H91: 363.8765043 | I91: 376.4296973 | J91: 378.679674 | K91: 379.0763938 | L91: 379.1461425 | M91: 379.158399 | N91: 379.1605526 | O91: 379.160931 | P91: 379.1609975 | Q91: 379.1610092 | R91: 379.1610112
B92: 90 | C92: -0.2643241728 | D92: -0.2150146684 | E92: 0.4925432185 | F92: 0.3242586899 | G92: 300 | H92: 497.6725969 | I92: 628.3791956 | J92: 699.6539703 | K92: 735.1593777 | L92: 752.1185399 | M92: 760.0631832 | N92: 763.7516773 | O92: 765.4570828 | P92: 766.2440895 | Q92: 766.6069566 | R92: 766.774197
B93: 91 | C93: -0.2546072201 | D93: -0.3353747399 | E93: 0.4907106979 | F93: 0.4865777401 | G93: 300 | H93: 364.8140122 | I93: 377.7432332 | J93: 380.0928451 | K93: 380.5127178 | L93: 380.5875237 | M93: 380.6008443 | N93: 380.603216 | O93: 380.6036383 | P93: 380.6037135 | Q93: 380.6037269 | R93: 380.6037292
B94: 92 | C94: -0.2490013408 | D94: -0.1322743698 | E94: 0.5046881261 | F94: 0.5435883375 | G94: 300 | H94: 428.3256144 | I94: 480.7317252 | J94: 499.058408 | K94: 505.1474348 | L94: 507.137015 | M94: 507.7835924 | N94: 507.993349 | O94: 508.0613576 | P94: 508.0834037 | Q94: 508.0905498 | R94: 508.0928662
B95: 93 | C95: -0.2471694705 | D95: -0.2255176432 | E95: 0.5047290762 | F95: 0.4988511581 | G95: 300 | H95: 406.0979135 | I95: 441.4473155 | J95: 451.7207011 | K95: 454.594164 | L95: 455.3893885 | M95: 455.6088216 | N95: 455.6693228 | O95: 455.6860003 | P95: 455.6905972 | Q95: 455.6918643 | R95: 455.6922135
B96: 94 | C96: -0.2446399219 | D96: -0.1686383664 | E96: 0.4913556238 | F96: 0.4959604289 | G96: 300 | H96: 433.6589344 | I96: 490.7062183 | J96: 511.4740903 | K96: 518.6346838 | L96: 521.0587365 | M96: 521.8743014 | N96: 522.1481286 | O96: 522.2400027 | P96: 522.2708211 | Q96: 522.281158 | R96: 522.284625
B97: 95 | C97: -0.2501673471 | D97: -0.2457596353 | E97: 0.5125502653 | F97: 0.5673787134 | G97: 300 | H97: 368.3637795 | I97: 382.768945 | J97: 385.5225343 | K97: 386.0392669 | L97: 386.1359011 | M97: 386.1539611 | N97: 386.1573359 | O97: 386.1579665 | P97: 386.1580843 | Q97: 386.1581064 | R97: 386.1581105
B98: 96 | C98: -0.2418150958 | D98: -0.2477535796 | E98: 0.4986461247 | F98: 0.6861563967 | G98: 300 | H98: 322.5924581 | I98: 324.1441764 | J98: 324.2469921 | K98: 324.2537883 | L98: 324.2542375 | M98: 324.2542672 | N98: 324.2542691 | O98: 324.2542693 | P98: 324.2542693 | Q98: 324.2542693 | R98: 324.2542693
B99: 97 | C99: -0.2440256094 | D99: -0.2952097673 | E99: 0.5080566369 | F99: 0.431177656 | G99: 300 | H99: 405.198315 | I99: 439.9332236 | J99: 449.9455534 | K99: 452.7245394 | L99: 453.4878911 | M99: 453.6969779 | N99: 453.7542034 | O99: 453.7698623 | P99: 453.7741469 | Q99: 453.7753192 | R99: 453.77564
B100: 98 | C100: -0.2520590277 | D100: -0.2627698172 | E100: 0.5115017847 | F100: 0.4135198027 | G100: 300 | H100: 428.1247719 | I100: 480.3603308 | J100: 498.5992388 | K100: 504.6504839 | L100: 506.6250265 | M100: 507.2658603 | N100: 507.4734784 | O100: 507.5407048 | P100: 507.5624686 | Q100: 507.5695139 | R100: 507.5717946
B101: 99 | C101: -0.2616498038 | D101: -0.2660145273 | E101: 0.5130803118 | F101: 0.4060959501 | G101: 300 | H101: 430.0949221 | I101: 484.0167102 | J101: 503.1295088 | K101: 509.559269 | L101: 511.6853574 | M101: 512.3844089 | N101: 512.6138284 | O101: 512.689075 | P101: 512.71375 | Q101: 512.7218409 | R101: 512.7244939
B102: 100 | C102: -0.2450891082 | D102: -0.4231167031 | E102: 0.4951263439 | F102: 0.51395921 | G102: 300 | H102: 321.4723863 | I102: 322.8738017 | J102: 322.9621885 | K102: 322.9677509 | L102: 322.968101 | M102: 322.968123 | N102: 322.9681244 | O102: 322.9681245 | P102: 322.9681245 | Q102: 322.9681245 | R102: 322.9681245

Sheet frozen-price
B3: month | C3: Price | D3: Demand | E3: Supply | F3: Price Scenarios
B4: 1 | C4: 300 | D4: 222.8446436 | E4: 152.9872897 | F4: 300
B5: 2 | C5: 436.9865836 | D5: 201.2783686 | E5: 176.9594697 | F5: 428.1247719
B6: 3 | C6: 497.0400668 | D6: 194.3851494 | E6: 186.0018348 | F6: 577.2128457
B7: 4 | C7: 519.442229 | D7: 192.0798516 | E7: 189.2025791 | F7: 588.7802203
B8: 5 | C8: 527.341576 | D8: 191.2969103 | E8: 190.3109922 | F8: 450.120322
B9: 6 | C9: 530.0735023 | D9: 191.0295971 | E9: 190.6919578 | F9: 657.0308265
B10: 7 | C10: 531.0120508 | D10: 190.9381659 | E10: 190.8225601 | F10: 327.2424046
B11: 8 | C11: 531.3337532 | D11: 190.9068736 | E11: 190.8672935 | F11: 476.4000654
B12: 9 | C12: 531.4439358 | D12: 190.8961616 | E12: 190.8826108 | F12: 424.2437826
B13: 10 | C13: 531.481663 | D13: 190.8924944 | E13: 190.8878551 | F13: 331.7469159
B14: 11 | C14: 531.4945799 | D14: 190.8912389 | E14: 190.8896506 | F14: 672.9071687
B15: 12 | C15: 531.4990022 | D15: 190.890809 | E15: 190.8902653 | F15: 502.5985999

Sheet graphs
B2: title | C2: Price Formation Scenarios - 2 month adjustment time
B3: x-axis | C3: Months
B4: y-axis | C4: Price
B5: y2-axis | C5: Demand and Supply
